Workbook

Sheet Sheet1
A1: Plant age and soil texture rather than the presence of root hairs cause differences in maize resource allocation and root gene expression in the field
A2: Plant and Soil
A3: Minh Ganther, Eva Lippold, Manuela Désirée Bienert, Marie-Lara Bouffaud, Mario Bauer, Louis Baumann, Gerd Patrick Bienert, Doris Vetterlein, Anna Heintz-Buschart, Mika Tapio Tarkka*
A4: *Corresponding Author: mika.tarkka@ufz.de (Helmholtz-Institute for Environmental Research - UFZ, Halle, Germany)
A6: Supplementary File 5 (ESM5)
A8: Supplementary Table 8: Gene expression (RNAseq) related to nutrient transport in dependence to stage, substrate and genotype.
A9: Differential expression was determined by the DESeq package (Wald test). Only genes with corrected p-value padj<0.05 are included.
A10: Sheet 'Transporter_GeneExpression' shows the P-values from the DESeq2 analyses. Values in red color represent up-regulated genes, values in blue color represent down-regulated genes.
A11: Values with yellow background are significant at P<0.05
A12: L: loam, S: sand

Sheet Gene_Expression
H2: Pairwise contrasts (C2 vs C1) describing the effect of Condition2 vs Condition1 (baseline)
B3: also surveyed by qPCR for soil depth impact | D3: P<0.05 (LRT test) | H3: P<0.05 (Wald test) | K3: up-regulated | L3: down-regulated | N3: P<0.05 (Wald test) | R3: P<0.05 (Wald test)
D4: general effect (group factor) | H4: general effect (pairwise) | N4: substrate effect by stage (pairwise) | R4: genotype effect by stage by substrate (pairwise) | X4: general effect (pairwise) | AD4: substrate effect by stage (pairwise) | AH4: genotype effect by stage by substrate (pairwise)
A5: element | B5: gene_id | C5: label | D5: stage | E5: substrate | F5: genotype | H5: B19vB14 | I5: B59vB19 | J5: B59vB14 | K5: SvsL | L5: rth3vsWT | N5: B14_SvsL | O5: B19_SvsL | P5: B59_SvsL | R5: B14_L_rth3vsWT | S5: B14_S_rth3vsWT | T5: B19_L_rth3vsWT | U5: B19_S_rth3vsWT | V5: B59_L_rth3vsWT | W5: B59_S_rth3vsWT | X5: B19vB14 | Y5: B59vB19 | Z5: B59vB14 | AA5: SvsL | AB5: rth3vsWT | AD5: B14_SvsL | AE5: B19_SvsL | AF5: B59_SvsL | AH5: B14_L_rth3vsWT | AI5: B14_S_rth3vsWT | AJ5: B19_L_rth3vsWT | AK5: B19_S_rth3vsWT | AL5: B59_L_rth3vsWT | AM5: B59_S_rth3vsWT
A6: Ca | B6: Zm00001d002022 | C6: CAX2 | D6: 0.175 | E6: 0.681 | F6: 0.983 | H6: 0.127 | I6: 0.305 | J6: 0.811 | K6: 0.679 | L6: 0.974 | N6: 0.930 | O6: 0.924 | P6: 0.119 | R6: 0.686 | S6: 1.000 | T6: 0.518 | U6: 1.000 | V6: 1.000 | W6: 0.930 | X6: -0.2374548577 | Y6: 0.1915671763 | Z6: -0.04588768145 | AA6: 0.06292598054 | AB6: 0.02369368369 | AD6: -0.05972925103 | AE6: -0.05780452029 | AF6: 0.3457509468 | AH6: 0.1773413916 | AI6: -0.0005308596276 | AJ6: -0.1517093843 | AK6: -0.1151471777 | AL6: -0.1295471959 | AM6: -0.0646988053
A7: Ca | B7: Zm00001d023377 | C7: CAX11 | D7: 0.094 | E7: 0.121 | F7: 0.934 | H7: 0.980 | I7: 0.096 | J7: 0.046 | K7: 0.118 | L7: 0.901 | N7: 0.870 | O7: 0.909 | P7: 0.036 | R7: 0.910 | S7: 1.000 | T7: 0.482 | U7: 1.000 | V7: 1.000 | W7: 0.744 | X7: -0.008352713942 | Y7: -0.3893013052 | Z7: -0.3976540191 | AA7: -0.2680116885 | AB7: 0.09997882646 | AD7: -0.1347059224 | AE7: -0.09383548623 | AF7: -0.6288172191 | AH7: -0.1251073469 | AI7: -0.1346768753 | AJ7: 0.3452682082 | AK7: 0.361789339 | AL7: 0.5850202832 | AM7: 0.4346617643
A8: Ca | B8: Zm00001d052856 | C8: Ca-ATPase2 | D8: 0.859 | E8: 0.541 | F8: 0.983 | H8: 0.827 | I8: 0.675 | J8: 0.812 | K8: 0.539 | L8: NA | N8: NA | O8: NA | P8: NA | R8: NA | S8: 1.000 | T8: NA | U8: 1.000 | V8: 1.000 | W8: 0.773 | X8: -0.367997582 | Y8: 0.7186640358 | Z8: 0.3506664538 | AA8: 0.6869638685 | AB8: 0.184087607 | AD8: 1.234717603 | AE8: 1.266439566 | AF8: -0.6183015 | AH8: 0.7520771786 | AI8: -0.3972631701 | AJ8: -1.695337694 | AK8: 0.4659872795 | AL8: 2.830039998 | AM8: -2.704901417
A9: Ca | B9: Zm00001d026253 | C9: Ca-ATPase5 | D9: 0.130 | E9: 0.374 | F9: 0.932 | H9: 0.687 | I9: 0.383 | J9: 0.096 | K9: 0.368 | L9: 0.898 | N9: 0.853 | O9: 0.424 | P9: 0.999 | R9: 0.859 | S9: 1.000 | T9: 0.300 | U9: 1.000 | V9: 1.000 | W9: 0.929 | X9: -0.2232683575 | Y9: -0.4767709236 | Z9: -0.7000392811 | AA9: -0.3439289178 | AB9: 0.209739388 | AD9: -0.3062147506 | AE9: -0.7810726114 | AF9: 0.001577467 | AH9: -0.4282218828 | AI9: -0.6334555821 | AJ9: 1.128108529 | AK9: 1.106692835 | AL9: 0.4393238538 | AM9: -0.3318973894
A10: Ca | B10: Zm00001d002396 | C10: Ca-ATPase9 | D10: 0.688 | E10: 0.151 | F10: 1.000 | H10: 0.891 | I10: 0.447 | J10: 0.471 | K10: 0.145 | L10: 0.999 | N10: 0.901 | O10: 0.991 | P10: 0.013 | R10: 0.964 | S10: 1.000 | T10: 0.169 | U10: 1.000 | V10: 1.000 | W10: 0.570 | X10: 0.05111409841 | Y10: -0.250635676 | Z10: -0.1995215776 | AA10: -0.3040035732 | AB10: -0.002952585691 | AD10: -0.1298334834 | AE10: 0.01190741914 | AF10: -0.8572712793 | AH10: -0.07331204559 | AI10: -0.4160749834 | AJ10: 0.792929605 | AK10: -0.4113110788 | AL10: 0.1444330815 | AM10: 0.8456308939
A11: Mg | B11: Zm00001d000430 | C11: MGT1 | D11: 0.032 | E11: 0.163 | F11: 0.904 | H11: 0.018 | I11: 0.235 | J11: 0.443 | K11: 0.161 | L11: 0.860 | N11: 0.406 | O11: 0.979 | P11: 0.391 | R11: 0.811 | S11: 1.000 | T11: 0.130 | U11: 1.000 | V11: 1.000 | W11: 0.971 | X11: 0.387244551 | Y11: -0.2431388586 | Z11: 0.1441056925 | AA11: -0.2008334296 | AB11: -0.1051907621 | AD11: -0.3095911244 | AE11: -0.02197212789 | AF11: -0.2415194 | AH11: -0.118998051 | AI11: -0.05948106084 | AJ11: -0.3135198817 | AK11: -0.2250351965 | AL11: -0.1630564072 | AM11: 0.03179537875
A12: Mg | B12: Zm00001d036714 | C12: MGT2 | D12: 0.074 | E12: 0.003 | F12: 0.981 | H12: 0.027 | I12: 0.198 | J12: 0.593 | K12: 0.003 | L12: 0.970 | N12: 0.264 | O12: 0.188 | P12: 0.195 | R12: 0.934 | S12: 1.000 | T12: 0.487 | U12: 1.000 | V12: 1.000 | W12: 0.810 | X12: 0.4025052947 | Y12: -0.2865965687 | Z12: 0.115908726 | AA12: -0.4244548905 | AB12: 0.03547055715 | AD12: -0.4102373594 | AE12: -0.4825090616 | AF12: -0.3808424 | AH12: -0.06372846627 | AI12: 0.04169553721 | AJ12: -0.2286484919 | AK12: 0.1747075532 | AL12: 0.1052707159 | AM12: 0.2261233749
A13: Mg | B13: Zm00001d003125 | C13: MGT3 | D13: 0.416 | E13: 0.889 | F13: 0.656 | H13: 0.496 | I13: 0.755 | J13: 0.209 | K13: 0.888 | L13: 0.601 | N13: 0.982 | O13: 0.611 | P13: 0.332 | R13: 0.912 | S13: 1.000 | T13: 0.291 | U13: 1.000 | V13: 1.000 | W13: 0.682 | X13: 0.2373205852 | Y13: 0.1382911292 | Z13: 0.3756117144 | AA13: 0.04707881334 | AB13: 0.3252266669 | AD13: 0.03110438243 | AE13: -0.3934259934 | AF13: 0.4559952 | AH13: 0.2001926886 | AI13: -0.04155697012 | AJ13: 0.7455239036 | AK13: -0.1059054537 | AL13: 0.7804111232 | AM13: 0.7515058317
A14: Mg | B14: Zm00001d047388 | C14: MGT4 | D14: 0.132 | E14: 0.608 | F14: 0.949 | H14: 0.111 | I14: 0.174 | J14: 0.975 | K14: 0.605 | L14: 0.918 | N14: 0.829 | O14: 0.519 | P14: 0.135 | R14: 0.840 | S14: 1.000 | T14: 0.803 | U14: 1.000 | V14: 1.000 | W14: 0.603 | X14: -0.2510035253 | Y14: 0.2444492515 | Z14: -0.006554273785 | AA14: 0.07720991865 | AB14: -0.06431468888 | AD14: 0.1168441527 | AE14: -0.234182586 | AF14: 0.335713 | AH14: -0.08077658198 | AI14: -0.05262373677 | AJ14: -0.05706959572 | AK14: -0.06635593154 | AL14: 0.008631871715 | AM14: -0.2274139018
A15: Mg | B15: Zm00001d033969 | C15: MGT5 | D15: 0.686 | E15: 0.211 | F15: 0.995 | H15: 0.807 | I15: 0.783 | J15: 0.492 | K15: 0.209 | L15: 0.991 | N15: 0.920 | O15: 0.515 | P15: 0.406 | R15: 0.782 | S15: 1.000 | T15: 0.925 | U15: 1.000 | V15: 1.000 | W15: 0.849 | X15: 0.05658081813 | Y15: 0.07090392192 | Z15: 0.1274847401 | AA15: -0.1786655253 | AB15: -0.01142751781 | AD15: -0.07557649646 | AE15: -0.2654832185 | AF15: -0.2286969 | AH15: -0.1017325332 | AI15: -0.06644505169 | AJ15: 0.02269783662 | AK15: -0.08183709815 | AL15: 0.08949192484 | AM15: 0.09946168168
A16: Mg | B16: Zm00001d029808 | C16: MGT6 | D16: 0.258 | E16: 0.517 | F16: 0.998 | H16: 0.194 | I16: 0.284 | J16: 0.961 | K16: 0.516 | L16: 0.995 | N16: 0.848 | O16: 0.644 | P16: 0.925 | R16: 0.964 | S16: 1.000 | T16: 0.643 | U16: 1.000 | V16: 1.000 | W16: 0.776 | X16: -0.2211350247 | Y16: 0.210403427 | Z16: -0.01073159768 | AA16: -0.09771084283 | AB16: -0.007056574064 | AD16: -0.1165125485 | AE16: -0.202301534 | AF16: 0.03204825 | AH16: -0.02975284511 | AI16: -0.02659963253 | AJ16: 0.1324147383 | AK16: -0.02161208586 | AL16: 0.07736220716 | AM16: -0.2069791211
A17: Mg | B17: Zm00001d003666 | C17: MGT7 | D17: 0.000 | E17: 0.023 | F17: 0.975 | H17: 0.000 | I17: 0.069 | J17: 0.088 | K17: 0.014 | L17: 0.955 | N17: 0.004 | O17: 0.316 | P17: 0.611 | R17: 0.862 | S17: 1.000 | T17: 0.979 | U17: 1.000 | V17: 1.000 | W17: 0.932 | X17: 1.966011833 | Y17: -1.071143266 | Z17: 0.8948685666 | AA17: -1.016168689 | AB17: -0.1415193833 | AD17: -2.088949554 | AE17: -1.049422251 | AF17: 0.44751 | AH17: -0.4909437057 | AI17: 1.804317167 | AJ17: -0.04635864787 | AK17: -0.2353720481 | AL17: -0.1395400902 | AM17: -0.3693825141
A18: Mg | B18: Zm00001d012102 | C18: MGT8 | D18: 0.772 | E18: 0.013 | F18: 0.993 | H18: 0.841 | I18: 0.872 | J18: 0.638 | K18: 0.012 | L18: 0.988 | N18: 0.849 | O18: 0.199 | P18: 0.036 | R18: 0.857 | S18: 1.000 | T18: 0.995 | U18: 1.000 | V18: 0.605 | W18: 0.616 | X18: 0.05137572045 | Y18: 0.04790454147 | Z18: 0.09928026193 | AA18: -0.347362343 | AB18: -0.01521777754 | AD18: -0.1287922773 | AE18: -0.4444290255 | AF18: -0.5402289985 | AH18: -0.09912924978 | AI18: -0.1263598359 | AJ18: 0.00237563692 | AK18: 0.003859378924 | AL18: 0.458405534 | AM18: 0.3038997442
A19: Mg | B19: Zm00001d042441 | C19: MGT9 | D19: 0.701 | E19: 0.108 | F19: 0.902 | H19: 0.608 | I19: 0.777 | J19: 0.880 | K19: 0.106 | L19: 0.858 | N19: 0.977 | O19: 0.479 | P19: 0.077 | R19: 0.898 | S19: 1.000 | T19: 0.189 | U19: 1.000 | V19: 1.000 | W19: 0.964 | X19: 0.0959246851 | Y19: -0.06575746886 | Z19: 0.03016721624 | AA19: -0.1992125245 | AB19: -0.09334925363 | AD19: -0.0206711349 | AE19: -0.2500676189 | AF19: -0.3910565339 | AH19: -0.04679970601 | AI19: -0.06795788564 | AJ19: -0.1970039721 | AK19: -0.09726027642 | AL19: -0.179596334 | AM19: -0.02799274547
A20: Mg | B20: Zm00001d027582 | C20: MGT10 | D20: 0.390 | E20: 0.413 | F20: 0.622 | H20: 0.355 | I20: 0.412 | J20: 0.989 | K20: 0.406 | L20: 0.554 | N20: 0.240 | O20: 0.674 | P20: 0.323 | R20: 0.823 | S20: 1.000 | T20: 0.975 | U20: 1.000 | V20: 1.000 | W20: 0.739 | X20: 0.2772821492 | Y20: -0.2824685303 | Z20: -0.005186381125 | AA20: -0.2002243748 | AB20: -0.3207859936 | AD20: -0.5919681044 | AE20: -0.3064983253 | AF20: 0.4185451 | AH20: -0.363451134 | AI20: -0.01765667762 | AJ20: -0.03148099527 | AK20: -0.1397463473 | AL20: -0.3251950292 | AM20: -0.6673991621
A21: Mg | B21: Zm00001d033527 | C21: MGT12 | D21: 0.771 | E21: 0.027 | F21: 0.579 | H21: 0.828 | I21: 0.933 | J21: 0.707 | K21: 0.027 | L21: 0.516 | N21: 0.369 | O21: 0.780 | P21: 0.158 | R21: 0.806 | S21: 1.000 | T21: 0.876 | U21: 1.000 | V21: 1.000 | W21: 0.669 | X21: 0.05708999015 | Y21: 0.02734426414 | Z21: 0.0844342543 | AA21: -0.3240759971 | AB21: -0.2370320413 | AD21: -0.3652650764 | AE21: -0.1710927043 | AF21: -0.415583 | AH21: -0.2238348044 | AI21: -0.3006337709 | AJ21: -0.08462137983 | AK21: -0.08810146175 | AL21: -0.3810665433 | AM21: -0.4562430242
A22: S | B22: Zm00001d021596 | C22: APRL1 | D22: 0.193 | E22: 0.193 | F22: 0.143 | H22: 0.419 | I22: 0.158 | J22: 0.529 | K22: 0.190 | L22: 0.108 | N22: 0.877 | O22: 0.362 | P22: 0.633 | R22: 0.805 | S22: 1.000 | T22: 0.226 | U22: 1.000 | V22: 1.000 | W22: 0.839 | X22: 0.1982330821 | Y22: -0.3482465873 | Z22: -0.1500135053 | AA22: 0.2357580003 | AB22: -0.4457883089 | AD22: 0.1441030963 | AE22: 0.4533128151 | AF22: 0.193263 | AH22: -0.3024394792 | AI22: -0.6808900565 | AJ22: -0.6467333483 | AK22: -0.5972688542 | AL22: -0.3640867948 | AM22: -0.3403792633
A23: S | B23: Zm00001d006467 | C23: APRL2 | D23: 0.000 | E23: 0.884 | F23: 0.452 | H23: 0.014 | I23: 0.000 | J23: 0.081 | K23: 0.882 | L23: 0.391 | N23: 0.790 | O23: 0.634 | P23: 0.242 | R23: 0.877 | S23: 1.000 | T23: 0.317 | U23: 1.000 | V23: 1.000 | W23: 0.849 | X23: 0.5634018251 | Y23: -0.9743442015 | Z23: -0.4109423764 | AA23: 0.04050010335 | AB23: -0.3594293305 | AD23: 0.2183157013 | AE23: 0.3123017658 | AF23: -0.4476021 | AH23: -0.2112491801 | AI23: -0.7566421021 | AJ23: -0.6059342139 | AK23: -0.628760722 | AL23: -0.1785218587 | AM23: 0.3551847619
A24: S | B24: Zm00001d028162 | C24: SULTR1.2a | D24: 0.005 | E24: 0.007 | F24: 0.992 | H24: 0.049 | I24: 0.447 | J24: 0.001 | K24: 0.006 | L24: 0.986 | N24: 0.038 | O24: 0.866 | P24: 0.011 | R24: 0.758 | S24: 1.000 | T24: 0.334 | U24: 1.000 | V24: 1.000 | W24: 0.908 | X24: 0.5245664459 | Y24: 0.2705982473 | Z24: 0.7951646932 | AA24: 0.5644277224 | AB24: 0.02651140203 | AD24: 0.8241001248 | AE24: -0.1528908547 | AF24: 0.9293559257 | AH24: 0.4497860588 | AI24: 0.4181656087 | AJ24: -0.6648292502 | AK24: -0.509102841 | AL24: -0.04436366573 | AM24: 0.2583806843
A25: S | B25: Zm00001d048189 | C25: SULTR1.2b | D25: 0.821 | E25: 0.545 | F25: 0.959 | H25: 0.522 | I25: 0.834 | J25: 0.723 | K25: 0.510 | L25: 0.929 | N25: 0.176 | O25: 0.873 | P25: 0.301 | R25: 0.306 | S25: 1.000 | T25: 0.475 | U25: 1.000 | V25: 1.000 | W25: 0.866 | X25: 0.5334665199 | Y25: -0.2352643332 | Z25: 0.2982021867 | AA25: -0.4285197027 | AB25: -0.2565199793 | AD25: -1.636150308 | AE25: -0.3848432206 | AF25: 1.102193 | AH25: -2.2379585 | AI25: 0.4897858723 | AJ25: 1.113208765 | AK25: 0.7211375705 | AL25: -0.3085827898 | AM25: -0.7777631932
A26: S | B26: Zm00001d050283 | C26: SULTR1.3 | D26: 0.000 | E26: 0.934 | F26: 1.000 | H26: 0.148 | I26: 0.000 | J26: 0.004 | K26: 0.931 | L26: 0.999 | N26: 0.472 | O26: 0.396 | P26: 0.722 | R26: 0.498 | S26: 1.000 | T26: 0.981 | U26: 1.000 | V26: 0.950 | W26: 0.609 | X26: -0.502013671 | Y26: 1.361740038 | Z26: 0.8597263671 | AA26: 0.03374211465 | AB26: -0.001749820715 | AD26: -0.5317537662 | AE26: 0.6120373381 | AF26: 0.2094626 | AH26: -0.9577604968 | AI26: 0.7933699634 | AJ26: 0.02705957722 | AK26: 0.5784092406 | AL26: 1.07569499 | AM26: -0.9929144418
A27: S | B27: Zm00001d028164 | C27: SULTR2.1 | D27: 0.000 | E27: 0.524 | F27: 0.835 | H27: 0.000 | I27: 0.180 | J27: 0.037 | K27: 0.522 | L27: 0.780 | N27: 0.613 | O27: 0.951 | P27: 0.967 | R27: 0.949 | S27: 1.000 | T27: 0.062 | U27: 1.000 | V27: 1.000 | W27: 0.806 | X27: 0.7165089364 | Y27: -0.31685282 | Z27: 0.3996561164 | AA27: 0.1212332602 | AB27: -0.1612893378 | AD27: 0.2684597528 | AE27: 0.05721349036 | AF27: -0.01937047 | AH27: 0.07804166003 | AI27: -0.246873992 | AJ27: -0.8330297737 | AK27: -0.3139185898 | AL27: -0.05818341184 | AM27: 0.3504315044
A28: S | B28: Zm00001d027749 | C28: SULTR3.1 | D28: 0.495 | E28: 0.726 | F28: 0.761 | H28: 0.486 | I28: 0.821 | J28: 0.253 | K28: 0.720 | L28: 0.694 | N28: 0.138 | O28: 0.946 | P28: 0.172 | R28: 0.755 | S28: 1.000 | T28: 0.007 | U28: 1.000 | V28: 0.954 | W28: 0.839 | X28: -0.2109327887 | Y28: -0.09274200793 | Z28: -0.3036747967 | AA28: 0.09422693601 | AB28: -0.2436491538 | AD28: 0.6293822244 | AE28: -0.07396041657 | AF28: -0.5116082 | AH28: 0.3828920934 | AI28: -0.322505996 | AJ28: -1.406396831 | AK28: 0.2143569958 | AL28: -0.7814011741 | AM28: 0.3596625665
A29: S | B29: Zm00001d002038 | C29: SULTR3.3 | D29: 0.000 | E29: 0.173 | F29: 0.564 | H29: 0.439 | I29: 0.006 | J29: 0.000 | K29: 0.168 | L29: 0.515 | N29: 0.807 | O29: 0.862 | P29: 0.286 | R29: 0.859 | S29: 1.000 | T29: 0.162 | U29: 1.000 | V29: 1.000 | W29: 0.766 | X29: -0.3012931948 | Y29: -0.9611514806 | Z29: -1.262444675 | AA29: 0.3913185017 | AB29: 0.4288268533 | AD29: 0.291717768 | AE29: 0.2144012839 | AF29: 0.5981778 | AH29: 0.3634127547 | AI29: 0.09684565697 | AJ29: 1.238726905 | AK29: -0.2393471015 | AL29: 0.7874822023 | AM29: 0.8035264268
A30: S | B30: Zm00001d000204 | C30: SULTR3.4 | D30: 0.950 | E30: 0.001 | F30: 0.983 | H30: 0.951 | I30: 0.923 | J30: 0.959 | K30: 0.001 | L30: 0.974 | N30: 0.160 | O30: 0.959 | P30: 0.000 | R30: 0.980 | S30: 1.000 | T30: 0.619 | U30: 1.000 | V30: 1.000 | W30: 0.664 | X30: 0.02068969348 | Y30: -0.03541099254 | Z30: -0.01472129906 | AA30: -0.5273064278 | AB30: -0.03343251566 | AD30: -0.471291026 | AE30: 0.04478960588 | AF30: -1.178203269 | AH30: -0.02983825178 | AI30: -0.3137706517 | AJ30: -0.2388379505 | AK30: 0.1536811961 | AL30: 0.01878095792 | AM30: 0.4766837253
A31: S | B31: Zm00001d043614 | C31: SULTR3.5 | D31: 0.870 | E31: 0.722 | F31: 0.767 | H31: 0.846 | I31: 0.799 | J31: 0.929 | K31: 0.712 | L31: 0.703 | N31: 0.491 | O31: 0.325 | P31: 0.487 | R31: 0.928 | S31: 1.000 | T31: 0.362 | U31: 1.000 | V31: 1.000 | W31: 0.695 | X31: -0.1194814968 | Y31: 0.1723211179 | Z31: 0.05283962116 | AA31: -0.1635141314 | AB31: -0.4048501604 | AD31: -0.6770004272 | AE31: 0.8778187476 | AF31: -0.4926244 | AH31: -0.2295406094 | AI31: -0.09341812082 | AJ31: -0.9796317935 | AK31: -0.3597878028 | AL31: -0.1715458421 | AM31: -1.087285249
A32: S | B32: Zm00001d005257 | C32: SULTR4.1 | D32: 0.986 | E32: 0.234 | F32: 0.985 | H32: 0.902 | I32: 0.970 | J32: 0.844 | K32: 0.230 | L32: 0.976 | N32: 0.957 | O32: 0.919 | P32: 0.014 | R32: 0.991 | S32: 1.000 | T32: 0.110 | U32: 1.000 | V32: 1.000 | W32: 0.821 | X32: -0.03104885565 | Y32: -0.01210640262 | Z32: -0.04315525827 | AA32: -0.1739647185 | AB32: -0.02509384155 | AD32: 0.04124452271 | AE32: -0.06715392342 | AF32: -0.570049719 | AH32: 0.008237424421 | AI32: -0.1271737579 | AJ32: -0.4072858205 | AK32: 0.2435084985 | AL32: 0.1588699047 | AM32: 0.1838353557
A33: S | B33: Zm00001d038625 | C33: SiR | D33: 0.309 | E33: 0.632 | F33: 0.643 | H33: 0.225 | I33: 0.970 | J33: 0.172 | K33: 0.630 | L33: 0.582 | N33: 0.852 | O33: 0.461 | P33: 0.538 | R33: 0.769 | S33: 1.000 | T33: 0.930 | U33: 1.000 | V33: 1.000 | W33: 0.881 | X33: -0.2403002572 | Y33: -0.01350363792 | Z33: -0.2538038951 | AA33: 0.08747910552 | AB33: -0.2131870335 | AD33: 0.1331633001 | AE33: 0.3209400819 | AF33: -0.1962479 | AH33: -0.2615360582 | AI33: -0.3904338427 | AJ33: -0.05251104048 | AK33: 0.006489515636 | AL33: -0.2309305779 | AM33: -0.1969348614
A34: B | B34: Zm00001d030656 | C34: RTE | D34: 0.000 | E34: 0.022 | F34: 0.904 | H34: 0.914 | I34: 0.000 | J34: 0.000 | K34: 0.018 | L34: 0.857 | N34: 0.153 | O34: 0.002 | P34: 0.446 | R34: 0.660 | S34: 1.000 | T34: 0.245 | U34: 1.000 | V34: 1.000 | W34: 0.730 | X34: -0.04060494244 | Y34: 1.086135418 | Z34: 1.045530475 | AA34: 0.4575403973 | AB34: -0.1555614333 | AD34: 0.5780259318 | AE34: 1.088039145 | AF34: -0.2890862 | AH34: 0.4951825818 | AI34: -0.2189522607 | AJ34: 0.6493227379 | AK34: -0.60003374 | AL34: -0.6386276988 | AM34: -0.5358283764
A35: B | B35: Zm00001d041590 | C35: RTE2 | D35: 0.000 | E35: 0.109 | F35: 0.529 | H35: 0.298 | I35: 0.000 | J35: 0.000 | K35: 0.104 | L35: 0.467 | N35: 0.989 | O35: 0.779 | P35: 0.011 | R35: 0.964 | S35: 1.000 | T35: 0.649 | U35: 1.000 | V35: 1.000 | W35: 0.865 | X35: -0.2500578864 | Y35: 1.082042762 | Z35: 0.8319848754 | AA35: -0.2894822987 | AB35: -0.2955386256 | AD35: 0.01424377511 | AE35: -0.1922820348 | AF35: -0.7806593706 | AH35: 0.07281667597 | AI35: -0.2966848474 | AJ35: -0.3110658551 | AK35: -0.3952197312 | AL35: -0.4451284371 | AM35: -0.3140215473
A36: B | B36: Zm00001d039647 | C36: RTE3 | D36: 0.011 | E36: 0.117 | F36: 0.982 | H36: 0.004 | I36: 0.707 | J36: 0.025 | K36: 0.111 | L36: 0.971 | N36: 0.131 | O36: 0.544 | P36: 0.784 | R36: 0.871 | S36: 1.000 | T36: 0.930 | U36: 1.000 | V36: 1.000 | W36: 0.707 | X36: 0.7653120284 | Y36: -0.1597614252 | Z36: 0.6055506032 | AA36: -0.3764007257 | AB36: 0.05260096317 | AD36: -0.734841096 | AE36: -0.4247067024 | AF36: 0.145978 | AH36: -0.2774706077 | AI36: 0.547284422 | AJ36: 0.09636098099 | AK36: 0.05932842269 | AL36: 0.4204725501 | AM36: -0.7647669753
A37: B | B37: Zm00001d048447 | C37: RTE4 | D37: NA | E37: NA | F37: 0.975 | H37: NA | I37: NA | J37: NA | K37: NA | L37: NA | N37: NA | O37: NA | P37: NA | R37: NA | S37: 1.000 | T37: NA | U37: 1.000 | V37: 1.000 | W37: 1.000 | X37: 0.9545895442 | Y37: -0.5346970682 | Z37: 0.419892476 | AA37: -0.8449113887 | AB37: -0.3763562506 | AD37: 0.4777152854 | AE37: -1.662133003 | AF37: -1.843367 | AH37: 0 | AI37: -0.1208232083 | AJ37: -2.695437699 | AK37: -1.017839006 | AL37: -0.1474711803 | AM37: 0
A38: Fe | B38: Zm00001d028360 | C38: DMAS1 | D38: 0.000 | E38: 0.070 | F38: 0.658 | H38: 0.199 | I38: 0.003 | J38: 0.000 | K38: 0.064 | L38: 0.588 | N38: 0.710 | O38: 0.696 | P38: 0.058 | R38: 0.961 | S38: 0.795 | T38: 0.858 | U38: 1.000 | V38: 0.950 | W38: 0.479 | X38: 0.3299445591 | Y38: 0.72292599 | Z38: 1.052870549 | AA38: 0.3588409409 | AB38: 0.2746544191 | AD38: 0.2705889354 | AE38: 0.2744853674 | AF38: 0.6833124739 | AH38: 0.07474367012 | AI38: 0.8528035861 | AJ38: 0.134853776 | AK38: -0.09699862225 | AL38: -0.7735720741 | AM38: 0.9548124082
A39: Fe | B39: Zm00001d052316 | C39: Ferritin | D39: 0.074 | E39: 0.136 | F39: 0.992 | H39: 0.030 | I39: 0.643 | J39: 0.152 | K39: 0.132 | L39: 0.987 | N39: 0.894 | O39: 0.269 | P39: 0.054 | R39: 0.767 | S39: 1.000 | T39: 0.119 | U39: 1.000 | V39: 1.000 | W39: 0.977 | X39: -0.4405133552 | Y39: 0.1397399559 | Z39: -0.3007733993 | AA39: -0.2618753305 | AB39: 0.01967201893 | AD39: 0.1157433545 | AE39: -0.45501379 | AF39: -0.5709004903 | AH39: -0.3121952532 | AI39: 0.04725902327 | AJ39: 0.7235560811 | AK39: 0.1026578974 | AL39: -0.006836599917 | AM39: -0.05857556059
A40: Fe | B40: Zm00001d053281 | C40: NAAT1 | D40: 0.000 | E40: 0.000 | F40: 0.218 | H40: 0.786 | I40: 0.000 | J40: 0.000 | K40: 0.000 | L40: 0.128 | N40: 0.010 | O40: 0.008 | P40: 0.056 | R40: 0.212 | S40: 0.031 | T40: 0.873 | U40: 1.000 | V40: 0.361 | W40: 0.341 | X40: 0.1592206181 | Y40: 2.043573778 | Z40: 2.202794396 | AA40: 1.448507132 | AB40: 0.8712123822 | AD40: 1.714559459 | AE40: 1.919725465 | AF40: 1.280182296 | AH40: 1.579204889 | AI40: 2.151498549 | AJ40: 0.1994387283 | AK40: 0.5556783491 | AL40: -2.059525136 | AM40: 1.81261055
A41: Fe | B41: Zm00001d048129 | C41: NRAMP1 | D41: 0.004 | E41: 0.086 | F41: 0.943 | H41: 0.002 | I41: 0.046 | J41: 0.512 | K41: 0.085 | L41: 0.911 | N41: 0.643 | O41: 0.579 | P41: 0.350 | R41: 0.770 | S41: 1.000 | T41: 0.790 | U41: 1.000 | V41: 1.000 | W41: 0.652 | X41: -0.4515104215 | Y41: 0.3374381143 | Z41: -0.1140723072 | AA41: 0.2183028249 | AB41: 0.06959811117 | AD41: 0.1967842547 | AE41: 0.2244263205 | AF41: 0.2384596 | AH41: 0.1673962514 | AI41: 0.03731372064 | AJ41: -0.08978722378 | AK41: 0.3057651827 | AL41: -0.04521982308 | AM41: -0.3065830605
A42: Fe | B42: Zm00001d034035 | C42: OPT7 | D42: 0.130 | E42: 0.224 | F42: 0.705 | H42: 0.503 | I42: 0.080 | J42: 0.272 | K42: 0.221 | L42: 0.646 | N42: 0.763 | O42: 0.331 | P42: 0.961 | R42: 0.854 | S42: 1.000 | T42: 0.514 | U42: 1.000 | V42: 1.000 | W42: 0.593 | X42: -0.1518517875 | Y42: 0.3695018462 | Z42: 0.2176500587 | AA42: 0.1989640025 | AB42: -0.1987813112 | AD42: 0.1858352329 | AE42: 0.3993869837 | AF42: 0.02144385 | AH42: -0.1851191405 | AI42: -0.2122134096 | AJ42: -0.3162576932 | AK42: 0.06990125667 | AL42: -0.1056353284 | AM42: -0.6078393497
A43: Fe | B43: Zm00001d041111 | C43: TOM1 | D43: 0.427 | E43: 0.006 | F43: 0.366 | H43: 0.969 | I43: 0.005 | J43: 0.001 | K43: 0.001 | L43: 0.187 | N43: 0.036 | O43: 0.001 | P43: 0.703 | R43: 0.055 | S43: 0.219 | T43: 0.660 | U43: 1.000 | V43: 1.000 | W43: 0.599 | X43: 0.04757961544 | Y43: 2.164114688 | Z43: 2.211694303 | AA43: 1.875173275 | AB43: 1.417675621 | AD43: 2.479265358 | AE43: 3.751675882 | AF43: 0.528572 | AH43: 3.362409944 | AI43: 3.067296015 | AJ43: -0.8326433521 | AK43: 1.28185825 | AL43: -1.79817402 | AM43: 1.995581386
A44: Fe | B44: Zm00001d052435 | C44: TOM2 | D44: 0.193 | E44: 0.756 | F44: 0.992 | H44: 0.564 | I44: 0.121 | J44: 0.314 | K44: 0.754 | L44: 0.985 | N44: 0.934 | O44: 0.791 | P44: 0.896 | R44: 0.214 | S44: 1.000 | T44: 0.154 | U44: 1.000 | V44: 1.000 | W44: 0.915 | X44: -0.4072599763 | Y44: 1.021567622 | Z44: 0.6143076452 | AA44: -0.1888519073 | AB44: 0.06087169737 | AD44: -0.2219961877 | AE44: -0.4971029013 | AF44: 0.1553215 | AH44: -2.31480944 | AI44: -1.62362132 | AJ44: 1.873351874 | AK44: 1.493262635 | AL44: -0.4984440718 | AM44: -0.4833562084
A45: Fe | B45: Zm00001d005001 | C45: TOM3 | D45: 0.365 | E45: 0.293 | F45: 0.921 | H45: 0.440 | I45: 0.336 | J45: 0.808 | K45: 0.287 | L45: 0.882 | N45: 0.953 | O45: 0.839 | P45: 0.015 | R45: 0.686 | S45: 1.000 | T45: 0.610 | U45: 1.000 | V45: 1.000 | W45: 0.884 | X45: -0.172370613 | Y45: 0.2317178049 | Z45: 0.05934719192 | AA45: 0.1781863762 | AB45: 0.1049276985 | AD45: 0.05014382221 | AE45: -0.1276701732 | AF45: 0.6413751187 | AH45: 0.3548885749 | AI45: 0.1373558214 | AJ45: 0.2478022224 | AK45: -0.3011762201 | AL45: 0.08136676838 | AM45: -0.2004778163
A46: Fe | B46: Zm00001d017429 | C46: YS1 | D46: 0.002 | E46: 0.002 | F46: 0.193 | H46: 0.657 | I46: 0.000 | J46: 0.000 | K46: 0.001 | L46: 0.132 | N46: 0.088 | O46: 0.062 | P46: 0.221 | R46: 0.614 | S46: 0.211 | T46: 0.880 | U46: 1.000 | V46: 0.960 | W46: 0.441 | X46: -0.1925031839 | Y46: 1.291911574 | Z46: 1.09940839 | AA46: 0.8166473729 | AB46: 0.6850460996 | AD46: 1.013977563 | AE46: 1.17125844 | AF46: 0.6848512 | AH46: 0.8223223809 | AI46: 1.689433651 | AJ46: 0.1730923123 | AK46: 0.6718153456 | AL46: -1.118204076 | AM46: 1.50516221
A47: Zn | B47: Zm00001d031764 | C47: ZIP1 | D47: 0.371 | E47: 0.418 | F47: 0.902 | H47: 0.234 | I47: 0.377 | J47: 0.908 | K47: 0.415 | L47: 0.859 | N47: 0.892 | O47: 0.955 | P47: 0.436 | R47: 0.546 | S47: 1.000 | T47: 0.337 | U47: 1.000 | V47: 1.000 | W47: 0.924 | X47: 0.2102349097 | Y47: -0.1844148928 | Z47: 0.0258200169 | AA47: 0.1209459783 | AB47: 0.1013142484 | AD47: 0.09735987118 | AE47: 0.0423104191 | AF47: 0.2144138 | AH47: 0.3099492014 | AI47: -0.005293515995 | AJ47: 0.2693531079 | AK47: -0.1734070147 | AL47: 0.04405148314 | AM47: 0.09127210338
A48: Zn | B48: Zm00001d033446 | C48: ZIP2 | D48: 0.001 | E48: 0.000 | F48: 0.750 | H48: 0.277 | I48: 0.000 | J48: 0.012 | K48: 0.000 | L48: 0.672 | N48: 0.386 | O48: 0.165 | P48: 0.001 | R48: 0.625 | S48: 0.913 | T48: 0.518 | U48: 1.000 | V48: 1.000 | W48: 0.829 | X48: -0.4153141112 | Y48: 1.224625749 | Z48: 0.8093116376 | AA48: 0.9906493034 | AB48: 0.3450712316 | AD48: 0.6397415777 | AE48: 0.9205696035 | AF48: 1.560561345 | AH48: 0.8948046633 | AI48: 1.366365975 | AJ48: 0.664157256 | AK48: 0.3149732043 | AL48: -0.5366937295 | AM48: -0.6131123842
A49: Zn | B49: Zm00001d034944 | C49: ZIP3 | D49: 0.345 | E49: 0.017 | F49: 0.943 | H49: 0.239 | I49: 0.647 | J49: 0.594 | K49: 0.016 | L49: 0.911 | N49: 0.834 | O49: 0.723 | P49: 0.001 | R49: 0.798 | S49: 1.000 | T49: 0.795 | U49: 1.000 | V49: 1.000 | W49: 0.597 | X49: 0.2417152538 | Y49: -0.1252490373 | Z49: 0.1164662165 | AA49: -0.3543326401 | AB49: -0.08446018996 | AD49: -0.1408655353 | AE49: -0.1909732261 | AF49: -0.8153710569 | AH49: -0.1780705189 | AI49: -0.1037460749 | AJ49: -0.1028107283 | AK49: -0.1284301947 | AL49: -0.08179059358 | AM49: 0.4195844656
A50: Zn | B50: Zm00001d002343 | C50: ZIP4 | D50: 0.000 | E50: 0.000 | F50: 0.762 | H50: 0.000 | I50: 0.001 | J50: 0.000 | K50: 0.000 | L50: 0.703 | N50: 0.024 | O50: 0.037 | P50: 0.000 | R50: 0.508 | S50: 1.000 | T50: 0.833 | U50: 1.000 | V50: 1.000 | W50: 0.689 | X50: -2.009038594 | Y50: 1.045184274 | Z50: -0.9638543198 | AA50: 1.377044706 | AB50: -0.2895830034 | AD50: 1.011413766 | AE50: 1.069083875 | AF50: 2.161342145 | AH50: -0.9811192249 | AI50: 0.3485994593 | AJ50: -0.2333086697 | AK50: -0.1014064923 | AL50: 0.4309323356 | AM50: -0.8632481733
A51: Zn | B51: Zm00001d049375 | C51: ZIP5 | D51: 0.133 | E51: 0.060 | F51: 0.592 | H51: 0.038 | I51: 0.595 | J51: 0.211 | K51: 0.058 | L51: 0.528 | N51: 0.438 | O51: 0.706 | P51: 0.425 | R51: 0.608 | S51: 1.000 | T51: 0.709 | U51: 1.000 | V51: 1.000 | W51: 0.674 | X51: -0.4330480274 | Y51: 0.1600470534 | Z51: -0.273000974 | AA51: 0.3239043045 | AB51: -0.2660145688 | AD51: 0.3797725024 | AE51: 0.2425249601 | AF51: 0.2916763 | AH51: -0.5288850408 | AI51: 0.1076844164 | AJ51: -0.2381272834 | AK51: -0.1386948275 | AL51: -0.09958529827 | AM51: -0.5872357972
A52: Zn | B52: Zm00001d053665 | C52: ZIP6 | D52: 0.208 | E52: 0.013 | F52: 0.975 | H52: 0.659 | I52: 0.134 | J52: 0.267 | K52: 0.012 | L52: 0.958 | N52: 0.833 | O52: 0.167 | P52: 0.055 | R52: 0.740 | S52: 1.000 | T52: 0.158 | U52: 1.000 | V52: 1.000 | W52: 0.954 | X52: -0.09300881041 | Y52: 0.2835941872 | Z52: 0.1905853768 | AA52: 0.3171290731 | AB52: 0.04163110646 | AD52: 0.1268699172 | AE52: 0.4308932246 | AF52: 0.4600372888 | AH52: 0.1951772289 | AI52: 0.1800469848 | AJ52: -0.3847560362 | AK52: -0.1150875167 | AL52: -0.3538679713 | AM52: 0.05759731133
A53: Zn | B53: Zm00001d036965 | C53: ZIP7 | D53: 0.062 | E53: 0.000 | F53: 0.898 | H53: 0.610 | I53: 0.002 | J53: 0.007 | K53: 0.000 | L53: 0.854 | N53: 0.000 | O53: 0.037 | P53: 0.722 | R53: 0.839 | S53: 1.000 | T53: 0.585 | U53: 1.000 | V53: 1.000 | W53: 0.878 | X53: -0.168655095 | Y53: 0.827344467 | Z53: 0.658689372 | AA53: 0.9946393189 | AB53: 0.1665715164 | AD53: 1.760587622 | AE53: 0.8215295538 | AF53: 0.1524415 | AH53: -0.2663472756 | AI53: 0.5593557346 | AJ53: 0.3542186361 | AK53: -0.4637756501 | AL53: 0.4177828838 | AM53: -0.2831875373
A54: Zn | B54: Zm00001d037756 | C54: ZIP8 | D54: 0.292 | E54: 0.117 | F54: 0.788 | H54: 0.503 | I54: 0.168 | J54: 0.462 | K54: 0.116 | L54: 0.731 | N54: 0.609 | O54: 0.373 | P54: 0.818 | R54: 0.850 | S54: 1.000 | T54: 0.315 | U54: 1.000 | V54: 1.000 | W54: 0.680 | X54: -0.1446487976 | Y54: 0.2916545577 | Z54: 0.1470057602 | AA54: 0.2347811681 | AB54: -0.161118333 | AD54: 0.2445900057 | AE54: 0.3594393641 | AF54: 0.08176487 | AH54: -0.1602256075 | AI54: 0.03243588024 | AJ54: -0.3827156443 | AK54: -0.1537830673 | AL54: -0.09749486993 | AM54: -0.4092649877
A55: Zn | B55: Zm00001d038437 | C55: ZIP9 | D55: 0.570 | E55: 0.000 | F55: 0.957 | H55: 0.548 | I55: 0.226 | J55: 0.522 | K55: 0.000 | L55: 0.929 | N55: 0.000 | O55: 0.000 | P55: 0.000 | R55: 0.828 | S55: 1.000 | T55: 0.943 | U55: 1.000 | V55: 1.000 | W55: 0.977 | X55: -0.1999600768 | Y55: 0.3959255591 | Z55: 0.1959654823 | AA55: 1.945347415 | AB55: 0.1016367697 | AD55: 1.89725795 | AE55: 1.840558075 | AF55: 2.113275898 | AH55: 0.3596264951 | AI55: 0.6655218459 | AJ55: -0.07725834163 | AK55: -0.8680972616 | AL55: -0.01155380461 | AM55: -0.0778990876
A56: Zn | B56: Zm00001d019228 | C56: ZIP10 | D56: 0.016 | E56: 0.517 | F56: 0.910 | H56: 0.469 | I56: 0.220 | J56: 0.013 | K56: 0.512 | L56: 0.867 | N56: 0.930 | O56: 0.612 | P56: 0.040 | R56: 0.923 | S56: 1.000 | T56: 0.316 | U56: 1.000 | V56: 1.000 | W56: 0.986 | X56: 0.1671096551 | Y56: 0.2872771983 | Z56: 0.4543868533 | AA56: -0.1207744786 | AB56: -0.1169871775 | AD56: -0.07668702167 | AE56: 0.2518299029 | AF56: -0.5630164728 | AH56: -0.1005351356 | AI56: -0.02083516753 | AJ56: -0.4336678011 | AK56: -0.1872645211 | AL56: -0.2979729921 | AM56: -0.03508946917
A57: Zn | B57: Zm00001d010838 | C57: ZIP11 | D57: 0.240 | E57: 0.036 | F57: 0.958 | H57: 0.140 | I57: 0.556 | J57: 0.520 | K57: 0.034 | L57: 0.933 | N57: 0.195 | O57: 0.271 | P57: 0.926 | R57: 0.452 | S57: 1.000 | T57: 0.885 | U57: 1.000 | V57: 1.000 | W57: 0.800 | X57: 0.2946407711 | Y57: -0.1561082841 | Z57: 0.1385324869 | AA57: -0.3207466324 | AB57: -0.06855647866 | AD57: -0.4531876296 | AE57: -0.4276836706 | AF57: -0.03739184 | AH57: -0.4053341105 | AI57: -0.01219988876 | AJ57: 0.06047139299 | AK57: 0.0291225081 | AL57: 0.3038694763 | AM57: -0.238139538
A58: Zn | B58: Zm00001d023590 | C58: ZIP12 | D58: 0.057 | E58: 0.703 | F58: 1.000 | H58: 0.182 | I58: 0.048 | J58: 0.507 | K58: 0.701 | L58: 0.999 | N58: 0.628 | O58: 0.855 | P58: 0.547 | R58: 0.984 | S58: 1.000 | T58: 0.829 | U58: 1.000 | V58: 1.000 | W58: 0.832 | X58: 0.2380132774 | Y58: -0.3631947776 | Z58: -0.1251815002 | AA58: -0.06612601651 | AB58: -0.0009745811122 | AD58: -0.2139559911 | AE58: -0.1073424375 | AF58: 0.1727547 | AH58: 0.01274636141 | AI58: -0.0003624767956 | AJ58: 0.06609970053 | AK58: -0.1273447112 | AL58: 0.01483294453 | AM58: 0.152292106
A59: K | B59: Zm00001d036621 | C59: HAK1 | D59: 0.002 | E59: 0.015 | F59: 0.676 | H59: 0.125 | I59: 0.342 | J59: 0.002 | K59: 0.013 | L59: 0.598 | N59: 0.909 | O59: 0.196 | P59: 0.052 | R59: 0.754 | S59: 1.000 | T59: 0.091 | U59: 1.000 | V59: 1.000 | W59: 0.866 | X59: 0.6071028157 | Y59: 0.453289503 | Z59: 1.060392319 | AA59: 0.7293298246 | AB59: -0.4294869094 | AD59: 0.195959855 | AE59: 0.9644248444 | AF59: 1.085759677 | AH59: -0.6901435741 | AI59: 0.1903850142 | AJ59: -1.676972822 | AK59: -0.4128774195 | AL59: 0.1247717286 | AM59: -0.5265419602
A60: K | B60: Zm00001d026289 | C60: HAK2 | D60: 0.157 | E60: 0.002 | F60: 0.789 | H60: 0.491 | I60: 0.131 | J60: 0.399 | K60: 0.002 | L60: 0.728 | N60: 0.407 | O60: 0.556 | P60: 0.004 | R60: 0.958 | S60: 1.000 | T60: 0.176 | U60: 1.000 | V60: 1.000 | W60: 0.914 | X60: -0.1847539304 | Y60: 0.3913371586 | Z60: 0.2065832281 | AA60: -0.5313052968 | AB60: -0.2026215125 | AD60: -0.4042399492 | AE60: -0.3338213297 | AF60: -0.9242240378 | AH60: 0.08110952481 | AI60: -0.121027363 | AJ60: -0.7672379579 | AK60: -0.01055488011 | AL60: -0.6500371867 | AM60: -0.209932122
A61: K | B61: Zm00001d002269 | C61: HAK3 | D61: NA | E61: NA | F61: 0.997 | H61: NA | I61: NA | J61: NA | K61: NA | L61: NA | N61: NA | O61: NA | P61: NA | R61: NA | S61: 1.000 | T61: NA | U61: 1.000 | V61: 1.000 | W61: 0.957 | X61: 0.8934916159 | Y61: -0.7799501516 | Z61: 0.1135414644 | AA61: -0.5019780858 | AB61: 0.3404847879 | AD61: -0.2436277265 | AE61: -2.001405069 | AF61: 0.6685419 | AH61: -0.2839764828 | AI61: -0.6017111898 | AJ61: 4.318556798 | AK61: -0.5300037606 | AL61: 0 | AM61: -2.272324168
A62: K | B62: Zm00001d049987 | C62: HAK4 | D62: 0.000 | E62: 0.027 | F62: 0.391 | H62: 0.009 | I62: 0.332 | J62: 0.000 | K62: 0.023 | L62: 0.325 | N62: 0.318 | O62: 0.985 | P62: 0.020 | R62: 0.855 | S62: 1.000 | T62: 0.263 | U62: 1.000 | V62: 1.000 | W62: 0.682 | X62: 0.862800411 | Y62: 0.4275925753 | Z62: 1.290392986 | AA62: -0.627395991 | AB62: -0.5619238374 | AD62: -0.7213119188 | AE62: -0.03110802024 | AF62: -1.198006856 | AH62: -0.3859581198 | AI62: -0.431549382 | AJ62: -1.042903925 | AK62: 0.02585152748 | AL62: -0.7517964755 | AM62: -1.010525075
A63: K | B63: Zm00001d042244 | C63: HAK5 | D63: 0.000 | E63: 0.080 | F63: 0.963 | H63: 0.361 | I63: 0.000 | J63: 0.000 | K63: 0.076 | L63: 0.939 | N63: 0.462 | O63: 0.571 | P63: 0.564 | R63: 0.517 | S63: 1.000 | T63: 0.578 | U63: 1.000 | V63: 1.000 | W63: 0.598 | X63: 0.4507016684 | Y63: 2.252514074 | Z63: 2.703215742 | AA63: -0.6253192523 | AB63: 0.1444460368 | AD63: -0.7400843951 | AE63: -0.6340548031 | AF63: -0.4366836 | AH63: -1.252234916 | AI63: 0.3789717631 | AJ63: 0.6490199976 | AK63: 1.854096088 | AL63: 0.5690568963 | AM63: -1.38516247
A64: K | B64: Zm00001d022449 | C64: HAK7 | D64: 0.736 | E64: 0.346 | F64: 0.993 | H64: 0.493 | I64: 0.765 | J64: 0.776 | K64: 0.342 | L64: 0.988 | N64: 0.966 | O64: 0.142 | P64: 0.836 | R64: 0.823 | S64: 1.000 | T64: 0.150 | U64: 1.000 | V64: 1.000 | W64: 0.902 | X64: -0.1635173558 | Y64: 0.09179969638 | Z64: -0.07171765947 | AA64: -0.1690659321 | AB64: -0.01617132597 | AD64: 0.04015886471 | AE64: -0.5382203584 | AF64: -0.07933772 | AH64: -0.2244817829 | AI64: -0.2126425962 | AJ64: 0.6054366995 | AK64: 0.1782229513 | AL64: 0.3672510814 | AM64: 0.1750782432
A65: K | B65: Zm00001d029072 | C65: HAK8 | D65: 0.000 | E65: 0.076 | F65: 0.642 | H65: 0.001 | I65: 0.000 | J65: 0.362 | K65: 0.073 | L65: 0.581 | N65: 0.821 | O65: 0.927 | P65: 0.027 | R65: 0.391 | S65: 1.000 | T65: 0.574 | U65: 1.000 | V65: 1.000 | W65: 0.768 | X65: 0.6354994457 | Y65: -0.8401091346 | Z65: -0.204609689 | AA65: 0.3028708086 | AB65: 0.2424674509 | AD65: 0.1698246348 | AE65: 0.08023810535 | AF65: 0.6742917465 | AH65: 0.6815502307 | AI65: 0.1317224605 | AJ65: 0.3065527153 | AK65: -0.3072422012 | AL65: 0.1569544049 | AM65: 0.4250881568
A66: K | B66: Zm00001d036622 | C66: HAK10 | D66: 0.002 | E66: 0.020 | F66: 0.702 | H66: 0.157 | I66: 0.306 | J66: 0.002 | K66: 0.017 | L66: 0.632 | N66: 0.905 | O66: 0.209 | P66: 0.070 | R66: 0.770 | S66: 1.000 | T66: 0.110 | U66: 1.000 | V66: 1.000 | W66: 0.879 | X66: 0.5670177741 | Y66: 0.4809824126 | Z66: 1.048000187 | AA66: 0.7059195589 | AB66: -0.4090280143 | AD66: 0.2037963928 | AE66: 0.9448540094 | AF66: 1.02206825 | AH66: -0.6569153559 | AI66: 0.166791635 | AJ66: -1.599617355 | AK66: -0.3851875613 | AL66: 0.1199215789 | AM66: -0.4871958457
A67: K | B67: Zm00001d002333 | C67: HAK13 | D67: 0.000 | E67: 0.026 | F67: 0.928 | H67: 0.000 | I67: 0.102 | J67: 0.000 | K67: 0.020 | L67: 0.890 | N67: 0.838 | O67: 0.123 | P67: 0.000 | R67: 0.830 | S67: 1.000 | T67: 0.716 | U67: 1.000 | V67: 1.000 | W67: 0.950 | X67: -1.504465963 | Y67: -0.5772080328 | Z67: -2.081673996 | AA67: 0.5597170245 | AB67: -0.1606813886 | AD67: -0.2122867478 | AE67: 0.8081004966 | AF67: 1.424780668 | AH67: 0.3467085498 | AI67: -0.5331678662 | AJ67: 0.3194526616 | AK67: -0.7003001237 | AL67: -0.9342042273 | AM67: 0.1620985769
A68: K | B68: Zm00001d021592 | C68: HAK14 | D68: 0.051 | E68: 0.301 | F68: 0.961 | H68: 0.326 | I68: 0.460 | J68: 0.028 | K68: 0.299 | L68: 0.938 | N68: 0.613 | O68: 0.965 | P68: 0.538 | R68: 0.872 | S68: 1.000 | T68: 0.396 | U68: 1.000 | V68: 0.941 | W68: 0.731 | X68: 0.1663604462 | Y68: 0.1479736962 | Z68: 0.3143341423 | AA68: -0.137988947 | AB68: -0.05091144908 | AD68: -0.2018060114 | AE68: -0.03099402643 | AF68: -0.1606505 | AH68: -0.07472270887 | AI68: -0.04831106128 | AJ68: 0.1773349516 | AK68: 0.07396908095 | AL68: -0.2885992217 | AM68: -0.1921059219
A69: K | B69: Zm00001d002359 | C69: HAK15 | D69: 0.330 | E69: 0.877 | F69: 1.000 | H69: 0.432 | I69: 0.255 | J69: 0.697 | K69: 0.876 | L69: 0.998 | N69: 0.746 | O69: 0.519 | P69: 0.645 | R69: 0.613 | S69: 1.000 | T69: 0.713 | U69: 1.000 | V69: 1.000 | W69: 0.808 | X69: -0.1357006134 | Y69: 0.2051113748 | Z69: 0.06941076139 | AA69: -0.02623068835 | AB69: -0.002099734613 | AD69: -0.1477375858 | AE69: 0.2304799785 | AF69: -0.1197009 | AH69: 0.2187229676 | AI69: -0.09756830124 | AJ69: 0.09874771564 | AK69: -0.1927260801 | AL69: -0.06658732019 | AM69: -0.1632075649
A70: K | B70: Zm00001d024300 | C70: HAK16b | D70: 0.040 | E70: 0.619 | F70: 0.954 | H70: 0.305 | I70: 0.442 | J70: 0.022 | K70: 0.618 | L70: 0.928 | N70: 0.894 | O70: 0.725 | P70: 0.924 | R70: 0.961 | S70: 1.000 | T70: 0.042 | U70: 1.000 | V70: 1.000 | W70: 0.824 | X70: -0.2208399854 | Y70: -0.1966348581 | Z70: -0.4174748435 | AA70: -0.09497914837 | AB70: 0.07266527085 | AD70: -0.1124470648 | AE70: -0.2044827708 | AF70: 0.03941103 | AH70: -0.05432927593 | AI70: -0.1078132153 | AJ70: 0.7799252943 | AK70: 0.7185400477 | AL70: 0.1420810752 | AM70: 0.2769579564
A71: K | B71: Zm00001d020674 | C71: HAK17 | D71: 0.969 | E71: 0.043 | F71: 0.960 | H71: 0.881 | I71: 0.929 | J71: 0.964 | K71: 0.041 | L71: 0.935 | N71: 0.076 | O71: 0.744 | P71: 0.739 | R71: 0.991 | S71: 1.000 | T71: 0.111 | U71: 1.000 | V71: 1.000 | W71: 0.980 | X71: -0.0433945851 | Y71: 0.03119937153 | Z71: -0.01219521357 | AA71: -0.3196297587 | AB71: -0.06905882189 | AD71: -0.5653744254 | AE71: -0.192498518 | AF71: -0.1200908 | AH71: -0.01426499456 | AI71: -0.06263568204 | AJ71: -0.671764765 | AK71: -0.1634470233 | AL71: -0.03952656407 | AM71: -0.04568596769
A72: K | B72: Zm00001d033424 | C72: HAK18 | D72: NA | E72: NA | F72: 0.940 | H72: NA | I72: NA | J72: NA | K72: NA | L72: NA | N72: NA | O72: NA | P72: NA | R72: NA | S72: 1.000 | T72: NA | U72: 1.000 | V72: 1.000 | W72: NA | X72: -0.5150900785 | Y72: 0.05361665409 | Z72: -0.4614734244 | AA72: 0.09230307803 | AB72: -0.5785307711 | AD72: -0.4433367769 | AE72: 1.157309268 | AF72: -0.2932514 | AH72: -2.718105373 | AI72: 1.147205494 | AJ72: 0 | AK72: -0.4715174733 | AL72: -0.9841053064 | AM72: 0.4958283994
A73: K | B73: Zm00001d003115 | C73: HAK19 | D73: NA | E73: NA | F73: NA | H73: NA | I73: NA | J73: NA | K73: NA | L73: NA | N73: NA | O73: NA | P73: NA | R73: NA | S73: NA | T73: NA | U73: NA | V73: NA | W73: NA | X73: -0.8504767433 | Y73: -0.1046688602 | Z73: -0.9551456035 | AA73: -0.3174949594 | AB73: -0.2297092407 | AD73: -0.709126723 | AE73: 0.232619421 | AF73: 0 | AH73: NA | AI73: NA | AJ73: NA | AK73: NA | AL73: NA | AM73: NA
A74: K | B74: Zm00001d003859 | C74: HAK20 | D74: 0.000 | E74: 0.267 | F74: 0.996 | H74: 0.000 | I74: 0.465 | J74: 0.000 | K74: 0.202 | L74: 0.992 | N74: 0.308 | O74: 0.206 | P74: 0.027 | R74: 0.874 | S74: 1.000 | T74: 0.819 | U74: 1.000 | V74: 1.000 | W74: 0.934 | X74: 2.621395163 | Y74: 0.6563516273 | Z74: 3.27774679 | AA74: 0.7371503412 | AB74: -0.04149446931 | AD74: 1.283913952 | AE74: -1.546983031 | AF74: 1.996928718 | AH74: 0.5423334314 | AI74: 1.500266901 | AJ74: -0.4400843649 | AK74: -0.4888353606 | AL74: -0.7007697775 | AM74: -0.4277901047
A75: K | B75: Zm00001d020325 | C75: HAK23 | D75: 0.001 | E75: 0.203 | F75: 0.949 | H75: 0.603 | I75: 0.009 | J75: 0.000 | K75: 0.201 | L75: 0.917 | N75: 0.751 | O75: 0.721 | P75: 0.481 | R75: 0.981 | S75: 1.000 | T75: 0.376 | U75: 1.000 | V75: 1.000 | W75: 0.977 | X75: -0.1051027734 | Y75: -0.4419301632 | Z75: -0.5470329366 | AA75: 0.17690812 | AB75: -0.06885923433 | AD75: 0.1638394181 | AE75: 0.173548369 | AF75: 0.1954443 | AH75: 0.01862977922 | AI75: -0.01563911285 | AJ75: -0.2651168884 | AK75: -0.1843801817 | AL75: -0.345796108 | AM75: -0.03373253374
A76: K | B76: Zm00001d019631 | C76: HAK24 | D76: 0.414 | E76: 0.942 | F76: 0.917 | H76: 0.614 | I76: 0.771 | J76: 0.307 | K76: 0.941 | L76: 0.877 | N76: 0.864 | O76: 0.884 | P76: 0.992 | R76: 0.886 | S76: 1.000 | T76: 0.782 | U76: 1.000 | V76: 1.000 | W76: 0.885 | X76: 0.1060642707 | Y76: 0.07525947316 | Z76: 0.1813237438 | AA76: -0.01464082089 | AB76: -0.09403561861 | AD76: -0.1146008332 | AE76: 0.09183853996 | AF76: 0.00458056 | AH76: -0.1111459369 | AI76: -0.007884811319 | AJ76: -0.1163827735 | AK76: 0.03854200094 | AL76: -0.1820660551 | AM76: -0.152419662
A77: K | B77: Zm00001d017925 | C77: HAK25 | D77: 0.254 | E77: 0.096 | F77: 0.982 | H77: 0.168 | I77: 0.715 | J77: 0.404 | K77: 0.093 | L77: 0.972 | N77: 0.733 | O77: 0.886 | P77: 0.075 | R77: 0.708 | S77: 1.000 | T77: 0.512 | U77: 1.000 | V77: 1.000 | W77: 0.880 | X77: -0.2508320164 | Y77: 0.0941724026 | Z77: -0.1566596138 | AA77: 0.2374507375 | AB77: 0.03026118713 | AD77: 0.1799402218 | AE77: 0.09194241209 | AF77: 0.4546710321 | AH77: 0.2549090132 | AI77: -0.0004984361728 | AJ77: -0.229440646 | AK77: -0.2192387048 | AL77: 0.2242433743 | AM77: -0.1555180962
A78: K | B78: Zm00001d046679 | C78: HAK26 | D78: 0.546 | E78: 0.837 | F78: 0.952 | H78: 0.477 | I78: 0.549 | J78: 0.993 | K78: 0.835 | L78: 0.925 | N78: 0.605 | O78: 0.907 | P78: 0.348 | R78: 0.965 | S78: 1.000 | T78: 0.047 | U78: 1.000 | V78: 1.000 | W78: 0.884 | X78: 0.152238471 | Y78: -0.1500251025 | Z78: 0.002213368518 | AA78: 0.04113247293 | AB78: -0.07126560257 | AD78: 0.2391607252 | AE78: 0.08339164109 | AF78: -0.271072 | AH78: 0.03483706807 | AI78: -0.02732852153 | AJ78: -0.5546889225 | AK78: -0.2784905753 | AL78: -0.1275165473 | AM78: 0.1373152585
A79: K | B79: Zm00001d038252 | C79: KCH2 | D79: 0.615 | E79: 0.922 | F79: 0.971 | H79: 0.428 | I79: 0.889 | J79: 0.543 | K79: 0.916 | L79: 0.951 | N79: 0.848 | O79: 0.061 | P79: 0.291 | R79: 0.988 | S79: 1.000 | T79: 0.598 | U79: 1.000 | V79: 1.000 | W79: 0.884 | X79: -0.4990194217 | Y79: 0.1261393153 | Z79: -0.3728801064 | AA79: 0.06698533614 | AB79: -0.1506817589 | AD79: -0.3695907647 | AE79: 1.664559676 | AF79: -0.855254 | AH79: 0.04845628073 | AI79: 0.2780396214 | AJ79: -0.7451844734 | AK79: -0.02928803495 | AL79: -0.3716846067 | AM79: -0.5820281666
A80: K | B80: Zm00001d037289 | C80: ZORK | D80: 0.187 | E80: 0.054 | F80: 0.817 | H80: 0.812 | I80: 0.200 | J80: 0.055 | K80: 0.052 | L80: 0.760 | N80: 0.514 | O80: 0.563 | P80: 0.385 | R80: 0.541 | S80: 1.000 | T80: 0.170 | U80: 1.000 | V80: 1.000 | W80: 0.898 | X80: 0.1158917812 | Y80: 0.5281995987 | Z80: 0.6440913798 | AA80: 0.5413643221 | AB80: 0.2912492562 | AD80: 0.553123027 | AE80: 0.5184037542 | AF80: 0.503149 | AH80: 1.062643201 | AI80: -0.004518264827 | AJ80: 1.244529945 | AK80: 0.05747796069 | AL80: -1.037793985 | AM80: 0.3888579535
A81: N | B81: Zm00001d025831 | C81: AMT1 | D81: 0.012 | E81: 0.001 | F81: 0.992 | H81: 0.003 | I81: 0.028 | J81: 0.736 | K81: 0.001 | L81: 0.986 | N81: 0.253 | O81: 0.368 | P81: 0.021 | R81: 0.795 | S81: 1.000 | T81: 0.087 | U81: 1.000 | V81: 1.000 | W81: 0.816 | X81: -0.7301663308 | Y81: 0.6214340237 | Z81: -0.1087323071 | AA81: 0.6542048241 | AB81: 0.02591921486 | AD81: 0.5787057415 | AE81: 0.5230762281 | AF81: 0.8792262161 | AH81: -0.3891783516 | AI81: -0.4031109649 | AJ81: 1.097704131 | AK81: 0.5968697346 | AL81: 0.4659514674 | AM81: -0.4670695501
A82: N | B82: Zm00001d017249 | C82: AMT2 | D82: 0.000 | E82: 0.000 | F82: 0.975 | H82: 0.110 | I82: 0.000 | J82: 0.004 | K82: 0.000 | L82: 0.958 | N82: 0.006 | O82: 0.001 | P82: 0.000 | R82: 0.836 | S82: 1.000 | T82: 0.957 | U82: 1.000 | V82: 1.000 | W82: 0.853 | X82: -0.5050899824 | Y82: 1.304751521 | Z82: 0.7996615385 | AA82: 1.543869224 | AB82: -0.07664110273 | AD82: 1.198555721 | AE82: 1.47581704 | AF82: 2.058659834 | AH82: -0.4004787667 | AI82: 0.6528797524 | AJ82: 0.06754223925 | AK82: -0.3322204089 | AL82: 0.06446539373 | AM82: -0.4791509609
A83: N | B83: Zm00001d003025 | C83: AMT3 | D83: 0.017 | E83: 0.378 | F83: 0.891 | H83: 0.697 | I83: 0.016 | J83: 0.032 | K83: 0.376 | L83: 0.847 | N83: 0.941 | O83: 0.648 | P83: 0.637 | R83: 0.765 | S83: 1.000 | T83: 0.383 | U83: 1.000 | V83: 1.000 | W83: 0.936 | X83: -0.2506729944 | Y83: 1.204285847 | Z83: 0.9536128527 | AA83: -0.3806397845 | AB83: 0.3071123606 | AD83: -0.1708693128 | AE83: -0.6315955552 | AF83: -0.386137 | AH83: -0.8777692788 | AI83: 0.7328320432 | AJ83: 1.158657082 | AK83: 1.468009026 | AL83: 0.2187611534 | AM83: -0.3445045729
A84: N | B84: Zm00001d013270 | C84: AMT4 | D84: 0.128 | E84: 0.355 | F84: 0.994 | H84: 0.334 | I84: 0.512 | J84: 0.040 | K84: 0.333 | L84: 0.989 | N84: 0.094 | O84: 0.924 | P84: 0.955 | R84: 0.969 | S84: 1.000 | T84: 0.189 | U84: 1.000 | V84: 1.000 | W84: 0.984 | X84: 0.6854535521 | Y84: 0.5384791139 | Z84: 1.223932666 | AA84: -0.5356417713 | AB84: -0.04824511804 | AD84: -1.882119772 | AE84: 0.2334676934 | AF84: 0.0730596 | AH84: -0.160706215 | AI84: 1.769671279 | AJ84: -2.396905857 | AK84: 0.1444018834 | AL84: 0.07733473659 | AM84: -0.1378021848
A85: N | B85: Zm00001d012261 | C85: AMT7 | D85: 0.003 | E85: 0.006 | F85: 0.956 | H85: 0.000 | I85: 0.356 | J85: 0.019 | K85: 0.003 | L85: 0.927 | N85: 0.002 | O85: 0.202 | P85: 0.817 | R85: 0.836 | S85: 0.416 | T85: 0.969 | U85: 1.000 | V85: 1.000 | W85: 0.837 | X85: 1.839586873 | Y85: -0.6383515417 | Z85: 1.201235331 | AA85: -1.218909036 | AB85: -0.2089928865 | AD85: -2.264992188 | AE85: -1.284160407 | AF85: 0.2308037 | AH85: -0.5748389156 | AI85: 2.101407285 | AJ85: -0.06802113196 | AK85: 0.02600015355 | AL85: -0.5311791014 | AM85: -0.7760613733
A86: N | B86: Zm00001d016771 | C86: NH4 transporter2 | D86: 0.006 | E86: 0.195 | F86: 0.949 | H86: 0.073 | I86: 0.003 | J86: 0.242 | K86: 0.192 | L86: 0.917 | N86: 0.703 | O86: 0.838 | P86: 0.371 | R86: 0.942 | S86: 1.000 | T86: 0.569 | U86: 1.000 | V86: 1.000 | W86: 0.762 | X86: -0.5041163599 | Y86: 0.8416716536 | Z86: 0.3375552937 | AA86: 0.3096123066 | AB86: -0.1186545316 | AD86: 0.3161277185 | AE86: 0.1976568147 | AF86: 0.410448 | AH86: -0.14580761 | AI86: 0.1792524023 | AJ86: -0.5067259085 | AK86: 0.005785241111 | AL86: 0.2642620734 | AM86: -0.6978804354
A87: N | B87: Zm00001d038412 | C87: NH4 transporter2 | D87: 0.192 | E87: 0.903 | F87: 0.979 | H87: 0.305 | I87: 0.143 | J87: 0.637 | K87: 0.902 | L87: 0.965 | N87: 0.785 | O87: 0.912 | P87: 0.879 | R87: 0.887 | S87: 1.000 | T87: 0.542 | U87: 1.000 | V87: 1.000 | W87: 0.943 | X87: -0.2229957617 | Y87: 0.3313696732 | Z87: 0.1083739115 | AA87: 0.02752769164 | AB87: 0.04155445007 | AD87: 0.1787682706 | AE87: -0.08681623984 | AF87: -0.0605603 | AH87: -0.1442411736 | AI87: -0.1034719491 | AJ87: 0.2951346138 | AK87: 0.5113015129 | AL87: 0.4821705704 | AM87: -0.1088409616
A88: N | B88: Zm00001d034782 | C88: NH4 transporter2 | D88: 0.115 | E88: 0.167 | F88: 0.904 | H88: 0.581 | I88: 0.339 | J88: 0.051 | K88: 0.164 | L88: 0.864 | N88: 0.920 | O88: 0.503 | P88: 0.300 | R88: 0.878 | S88: 1.000 | T88: 0.525 | U88: 1.000 | V88: 1.000 | W88: 0.876 | X88: 0.154514238 | Y88: 0.2733562842 | Z88: 0.4278705222 | AA88: -0.2661067218 | AB88: 0.1377876053 | AD88: -0.103037252 | AE88: -0.3705304606 | AF88: -0.3793203 | AH88: -0.1944492811 | AI88: -0.1629161395 | AJ88: 0.3822336131 | AK88: 0.7127003009 | AL88: 0.5244436776 | AM88: 0.2732157874
A89: N | B89: Zm00001d054060 | C89: NRT1 | D89: 0.000 | E89: 0.000 | F89: 0.958 | H89: 0.546 | I89: 0.000 | J89: 0.000 | K89: 0.000 | L89: 0.926 | N89: 0.031 | O89: 0.985 | P89: 0.000 | R89: 0.967 | S89: 0.827 | T89: 0.757 | U89: 1.000 | V89: 1.000 | W89: 0.594 | X89: -0.3586379595 | Y89: 2.464004622 | Z89: 2.105366663 | AA89: 1.37386397 | AB89: -0.1873159409 | AD89: 1.501546139 | AE89: -0.0396049669 | AF89: 2.523189663 | AH89: 0.1259245685 | AI89: 1.652054868 | AJ89: -0.4275119346 | AK89: -0.4807408794 | AL89: -0.4400279053 | AM89: -1.489130671
A90: N | B90: Zm00001d054057 | C90: NRT2 | D90: 0.000 | E90: 0.002 | F90: 0.991 | H90: 0.909 | I90: 0.000 | J90: 0.000 | K90: 0.001 | L90: 0.985 | N90: 0.037 | O90: 0.966 | P90: 0.001 | R90: 0.997 | S90: 0.797 | T90: 0.361 | U90: 1.000 | V90: 1.000 | W90: 0.829 | X90: -0.1019807284 | Y90: 2.956560205 | Z90: 2.854579477 | AA90: 1.48702993 | AB90: -0.0654242714 | AD90: 1.809095316 | AE90: -0.1127910733 | AF90: 2.518352561 | AH90: 0.01468325301 | AI90: 1.988023192 | AJ90: -1.248859912 | AK90: 0.0078142834 | AL90: 0.03507636357 | AM90: -0.8554226728
A91: N | B91: Zm00001d014976 | C91: NRT3 | D91: 0.956 | E91: 0.000 | F91: 0.261 | H91: 0.582 | I91: 0.183 | J91: 0.412 | K91: 0.000 | L91: 0.142 | N91: 0.580 | O91: 0.579 | P91: 0.000 | R91: 0.079 | S91: 1.000 | T91: 0.066 | U91: 1.000 | V91: 1.000 | W91: 0.891 | X91: 0.6278432243 | Y91: -1.463913097 | Z91: -0.8360698732 | AA91: 3.088573842 | AB91: 1.844425024 | AD91: 1.278683607 | AE91: 1.291443939 | AF91: 6.042737268 | AH91: 3.833571262 | AI91: 0.2908748952 | AJ91: 3.273836511 | AK91: -1.210347458 | AL91: 1.461677548 | AM91: 0.8066884768
A92: N | B92: Zm00001d003287 | C92: NRT4 | D92: 0.823 | E92: 0.000 | F92: 0.976 | H92: 0.763 | I92: 0.812 | J92: 0.478 | K92: 0.000 | L92: 0.960 | N92: 0.012 | O92: 0.395 | P92: 0.136 | R92: 0.836 | S92: 1.000 | T92: 0.859 | U92: 1.000 | V92: 1.000 | W92: 0.926 | X92: 0.1202009749 | Y92: 0.1096627161 | Z92: 0.229863691 | AA92: -0.7930117194 | AB92: -0.07125487032 | AD92: -1.094333313 | AE92: -0.5507428041 | AF92: -0.653127 | AH92: -0.3612412572 | AI92: 0.420296854 | AJ92: -0.1833720869 | AK92: -0.2462340788 | AL92: 0.4703308459 | AM92: -0.2500491566
A93: N | B93: Zm00001d011679 | C93: NRT5 | D93: 0.001 | E93: 0.441 | F93: 0.980 | H93: 0.056 | I93: 0.544 | J93: 0.003 | K93: 0.400 | L93: 0.967 | N93: 0.584 | O93: 0.707 | P93: 0.019 | R93: 0.869 | S93: 1.000 | T93: 0.684 | U93: 1.000 | V93: 1.000 | W93: 0.664 | X93: 1.078397779 | Y93: 0.472700562 | Z93: 1.551098341 | AA93: 0.4316568073 | AB93: -0.1145464053 | AD93: -0.752265204 | AE93: 0.5845536318 | AF93: 1.809136133 | AH93: -0.4663453207 | AI93: 1.455651082 | AJ93: -0.6007443238 | AK93: 0.7392817563 | AL93: -0.05029573468 | AM93: -1.406139843
A94: N | B94: Zm00001d017095 | C94: High aff N transp | D94: 0.000 | E94: 0.000 | F94: 0.949 | H94: 0.991 | I94: 0.000 | J94: 0.000 | K94: 0.000 | L94: 0.917 | N94: 0.043 | O94: 0.031 | P94: 0.000 | R94: 0.784 | S94: 1.000 | T94: 0.795 | U94: 1.000 | V94: 1.000 | W94: 0.609 | X94: -0.004836349568 | Y94: 1.573683998 | Z94: 1.568847648 | AA94: 1.203957864 | AB94: 0.1187575545 | AD94: 0.8357822398 | AE94: 0.9542686085 | AF94: 1.942561129 | AH94: 0.4209476566 | AI94: 0.7767516194 | AJ94: 0.2313290448 | AK94: -0.2775834539 | AL94: 0.1459882958 | AM94: -0.8829634839
A95: N | B95: Zm00001d044504 | C95: High aff N transp 2.7 | D95: 0.000 | E95: 0.003 | F95: 0.986 | H95: 0.833 | I95: 0.000 | J95: 0.000 | K95: 0.001 | L95: 0.976 | N95: 0.338 | O95: 0.578 | P95: 0.005 | R95: 0.994 | S95: 1.000 | T95: 0.388 | U95: 1.000 | V95: 1.000 | W95: 0.932 | X95: -0.2654543932 | Y95: 4.344078079 | Z95: 4.078623685 | AA95: 2.045786252 | AB95: 0.1271550685 | AD95: 1.728301067 | AE95: 1.265669497 | AF95: 3.070322044 | AH95: 0.0495795201 | AI95: 3.075018071 | AJ95: -2.418826605 | AK95: -0.6596471027 | AL95: -0.2701333014 | AM95: -0.5468271815
A96: P | B96: Zm00001d040125 | C96: PHO1-1 | D96: 0.771 | E96: 0.098 | F96: 0.258 | H96: 0.974 | I96: 0.836 | J96: 0.826 | K96: 0.093 | L96: 0.187 | N96: 0.997 | O96: 0.085 | P96: 0.514 | R96: 0.969 | S96: 1.000 | T96: 0.345 | U96: 1.000 | V96: 0.497 | W96: 0.912 | X96: 0.01448311366 | Y96: -0.09165929148 | Z96: -0.07717617782 | AA96: 0.3737349832 | AB96: -0.5081983027 | AD96: 0.005705748994 | AE96: 0.8623422976 | AF96: 0.3116574 | AH96: -0.07481691548 | AI96: -0.1943849965 | AJ96: -0.6879500897 | AK96: -0.9861960714 | AL96: -1.520141007 | AM96: -0.2624903231
A97: P | B97: Zm00001d051945 | C97: PHO1-2 | D97: 0.095 | E97: 0.645 | F97: 0.168 | H97: 0.598 | I97: 0.127 | J97: 0.298 | K97: 0.637 | L97: 0.114 | N97: 0.937 | O97: 0.758 | P97: 0.022 | R97: 0.818 | S97: 1.000 | T97: 0.588 | U97: 1.000 | V97: 1.000 | W97: 0.503 | X97: -0.191612848 | Y97: 0.512330863 | Z97: 0.320718015 | AA97: 0.1369303519 | AB97: -0.6104791626 | AD97: -0.108972205 | AE97: -0.2830911057 | AF97: 0.9810959041 | AH97: -0.4105684761 | AI97: -0.1926049565 | AJ97: -0.4716088494 | AK97: -0.9995856015 | AL97: -0.4577777343 | AM97: -1.261598766
A98: P | B98: Zm00001d018445 | C98: PHO1-2 | D98: 0.013 | E98: 0.193 | F98: 0.234 | H98: 0.246 | I98: 0.501 | J98: 0.021 | K98: 0.187 | L98: 0.173 | N98: 0.982 | O98: 0.107 | P98: 0.763 | R98: 0.831 | S98: 1.000 | T98: 0.170 | U98: 1.000 | V98: 1.000 | W98: 0.616 | X98: 0.3230293198 | Y98: 0.2333569208 | Z98: 0.5563862406 | AA98: 0.2871548185 | AB98: -0.4873919948 | AD98: -0.02866632222 | AE98: 0.7780391302 | AF98: 0.1504897 | AH98: -0.3344386445 | AI98: -0.03173936484 | AJ98: -0.9204058891 | AK98: -0.4941409568 | AL98: -0.7423509881 | AM98: -0.8634801063
A99: P | B99: Zm00001d037468 | C99: PHO1-3 | D99: 0.000 | E99: 0.896 | F99: 0.999 | H99: 0.024 | I99: 0.002 | J99: 0.000 | K99: 0.889 | L99: 0.996 | N99: 0.179 | O99: 0.001 | P99: 0.705 | R99: 0.573 | S99: 1.000 | T99: 0.427 | U99: 1.000 | V99: 0.882 | W99: 0.915 | X99: -0.8360762354 | Y99: -1.200909997 | Z99: -2.036986233 | AA99: 0.06134667178 | AB99: -0.01619129134 | AD99: -0.8170242885 | AE99: 1.62514639 | AF99: -0.2329016 | AH99: 0.903527641 | AI99: -0.2747376504 | AJ99: -0.7142766911 | AK99: -0.03278757167 | AL99: -1.297535653 | AM99: 0.3080228749
A100: P | B100: Zm00001d014116 | C100: PHT1 | D100: 0.043 | E100: 0.000 | F100: 0.987 | H100: 0.008 | I100: 0.931 | J100: 0.003 | K100: 0.000 | L100: 0.979 | N100: 0.989 | O100: 0.000 | P100: 0.001 | R100: 0.898 | S100: 1.000 | T100: 0.205 | U100: 1.000 | V100: 1.000 | W100: 0.822 | X100: -0.4942177018 | Y100: -0.03038737777 | Z100: -0.5246050796 | AA100: 0.5636752634 | AB100: -0.02716132646 | AD100: -0.01026086823 | AE100: 1.089997508 | AF100: 0.7987161473 | AH100: 0.1241989815 | AI100: 0.04044980608 | AJ100: -0.5090618592 | AK100: 0.1199480313 | AL100: -0.1314323739 | AM100: -0.2809615573
A101: P | B101: Zm00001d032850 | C101: PHT2 | D101: 0.002 | E101: 0.000 | F101: 0.682 | H101: 0.123 | I101: 0.030 | J101: 0.000 | K101: 0.000 | L101: 0.631 | N101: 0.857 | O101: 0.020 | P101: 0.000 | R101: 0.975 | S101: 1.000 | T101: 0.143 | U101: 1.000 | V101: 1.000 | W101: 0.997 | X101: -0.359883647 | Y101: -0.5250921059 | Z101: -0.8849757529 | AA101: 0.6722033651 | AB101: 0.2428387648 | AD101: 0.1506140369 | AE101: 0.8199083822 | AF101: 1.199333306 | AH101: 0.04576828416 | AI101: 0.1100747242 | AJ101: 0.7584912888 | AK101: 0.6364604692 | AL101: 0.5719732704 | AM101: -0.02434837706
A102: P | B102: Zm00001d004301 | C102: PHT3 | D102: 0.013 | E102: 0.052 | F102: 0.564 | H102: 0.534 | I102: 0.301 | J102: 0.033 | K102: 0.046 | L102: 0.497 | N102: 0.914 | O102: 0.662 | P102: 0.015 | R102: 0.593 | S102: 1.000 | T102: 0.991 | U102: 1.000 | V102: 1.000 | W102: 0.599 | X102: 0.4382252825 | Y102: 0.7306403578 | Z102: 1.16886564 | AA102: 0.9239984075 | AB102: -0.7653748364 | AD102: 0.2851854253 | AE102: 0.7045865635 | AF102: 2.013747255 | AH102: -1.530455806 | AI102: -0.05417360657 | AJ102: -0.02297401459 | AK102: 0.01273664167 | AL102: 0.6278903124 | AM102: -1.77300465
A103: P | B103: Zm00001d025028 | C103: PHT4 | D103: 0.008 | E103: 0.410 | F103: 0.999 | H103: 0.009 | I103: 0.951 | J103: 0.011 | K103: 0.390 | L103: 0.996 | N103: 0.213 | O103: 0.555 | P103: 0.296 | R103: 0.918 | S103: 1.000 | T103: 0.524 | U103: 1.000 | V103: 1.000 | W103: 0.967 | X103: 1.578338735 | Y103: -0.06500107084 | Z103: 1.513337664 | AA103: -0.4866355857 | AB103: 0.02387536769 | AD103: -1.74132384 | AE103: -0.8212784464 | AF103: 0.9529237 | AH103: 0.3666779462 | AI103: -0.8625380186 | AJ103: 0.8779143095 | AK103: -0.2239618157 | AL103: -0.4642996134 | AM103: -0.2182609562
A104: P | B104: Zm00001d011498 | C104: PHT6 | D104: 0.001 | E104: 0.168 | F104: 0.978 | H104: 0.001 | I104: 0.007 | J104: 0.889 | K104: 0.127 | L104: 0.962 | N104: 0.013 | O104: 0.682 | P104: 0.339 | R104: 0.826 | S104: 0.263 | T104: 0.930 | U104: 1.000 | V104: 1.000 | W104: 0.922 | X104: 1.705306944 | Y104: -1.597639948 | Z104: 0.1076669957 | AA104: -0.7272258383 | AB104: -0.1320955093 | AD104: -1.970538334 | AE104: -0.6224975411 | AF104: 0.8301607 | AH104: -0.6363463829 | AI104: 2.414020181 | AJ104: 0.1623444682 | AK104: -0.1916434571 | AL104: -0.6395182408 | AM104: -0.4330301216
A105: P | B105: Zm00001d031875 | C105: PHT7 | D105: 0.487 | E105: 0.000 | F105: 0.730 | H105: 0.008 | I105: 0.368 | J105: 0.180 | K105: 0.000 | L105: 0.660 | N105: 0.968 | O105: 0.000 | P105: 0.000 | R105: 0.912 | S105: 1.000 | T105: 0.270 | U105: 1.000 | V105: 1.000 | W105: 0.594 | X105: -0.6996509809 | Y105: 0.320154308 | Z105: -0.3794966729 | AA105: 0.9627882326 | AB105: -0.2852023793 | AD105: 0.04605177104 | AE105: 1.905517107 | AF105: 1.202956142 | AH105: -0.1634018923 | AI105: -0.1182924609 | AJ105: -0.683613704 | AK105: 0.1625329906 | AL105: -0.7213905779 | AM105: -0.8440530827
A106: P | B106: Zm00001d004306 | C106: PHT8 | D106: 0.000 | E106: 0.689 | F106: 0.885 | H106: 0.076 | I106: 0.000 | J106: 0.019 | K106: 0.666 | L106: 0.832 | N106: 0.142 | O106: 0.608 | P106: 0.012 | R106: 0.795 | S106: 1.000 | T106: 0.686 | U106: 1.000 | V106: 1.000 | W106: 0.785 | X106: 0.8451499598 | Y106: -1.893736444 | Z106: -1.048586484 | AA106: 0.2055124552 | AB106: -0.3232472055 | AD106: -1.051069718 | AE106: 0.5481985594 | AF106: 1.494867923 | AH106: -0.6202104228 | AI106: 1.109699975 | AJ106: -0.5147427778 | AK106: -0.04455773287 | AL106: 0.1666856213 | AM106: -0.872687094
A107: P | B107: Zm00001d027700 | C107: PHT9 | D107: 0.000 | E107: 0.000 | F107: 0.983 | H107: 0.000 | I107: 0.514 | J107: 0.000 | K107: 0.000 | L107: 0.974 | N107: 0.741 | O107: 0.000 | P107: 0.000 | R107: 0.646 | S107: 1.000 | T107: 0.842 | U107: 1.000 | V107: 1.000 | W107: 0.777 | X107: -1.815760719 | Y107: -0.34342486 | Z107: -2.159185579 | AA107: 1.470028355 | AB107: -0.06410507777 | AD107: 0.3586018038 | AE107: 2.310717758 | AF107: 2.089122683 | AH107: 0.793683313 | AI107: 0.7073671258 | AJ107: 0.2337524511 | AK107: -0.432607567 | AL107: -0.7191514235 | AM107: -0.7327214938
A108: P | B108: Zm00001d027549 | C108: PHT10 | D108: 0.276 | E108: NA | F108: 0.823 | H108: NA | I108: 0.764 | J108: NA | K108: NA | L108: NA | N108: NA | O108: NA | P108: NA | R108: NA | S108: 1.000 | T108: NA | U108: 1.000 | V108: 1.000 | W108: 0.875 | X108: -1.221557044 | Y108: 0.5448309166 | Z108: -0.6767261278 | AA108: -0.5593496584 | AB108: 0.8474737059 | AD108: -0.9053195389 | AE108: -0.08797608934 | AF108: -0.6235531 | AH108: 0.521628347 | AI108: 0.8142305322 | AJ108: 0.2278758357 | AK108: 0.4317803629 | AL108: 0.9066581824 | AM108: 1.453248666
A109: P | B109: Zm00001d019480 | C109: PHT11 | D109: 0.009 | E109: 0.929 | F109: 0.952 | H109: 0.035 | I109: 0.050 | J109: 0.954 | K109: 0.918 | L109: 0.920 | N109: 0.028 | O109: 0.261 | P109: 0.168 | R109: 0.746 | S109: 0.780 | T109: 0.537 | U109: 1.000 | V109: 1.000 | W109: 0.779 | X109: 1.38326761 | Y109: -1.43735621 | Z109: -0.05408860027 | AA109: 0.0817501832 | AB109: -0.2782773654 | AD109: -1.976802696 | AE109: 1.279484284 | AF109: 1.224349 | AH109: -0.9068887306 | AI109: 2.639128619 | AJ109: -0.8913971648 | AK109: 0.05234682094 | AL109: 0.1762204626 | AM109: -1.083095367
A110: P | B110: Zm00001d004308 | C110: PHT12 | D110: 0.000 | E110: 0.000 | F110: 0.516 | H110: 0.027 | I110: 0.000 | J110: 0.000 | K110: 0.000 | L110: 0.434 | N110: 0.741 | O110: 0.000 | P110: 0.000 | R110: 0.862 | S110: 1.000 | T110: 0.746 | U110: 1.000 | V110: 1.000 | W110: 0.417 | X110: -0.7437456046 | Y110: -1.704890329 | Z110: -2.448635933 | AA110: 1.265607325 | AB110: -0.4922132152 | AD110: 0.3359694855 | AE110: 1.683751072 | AF110: 2.098693213 | AH110: -0.3322320129 | AI110: -0.02296598855 | AJ110: -0.3403252428 | AK110: -0.07069349349 | AL110: -0.637891575 | AM110: -1.584116115
A111: AQP | B111: Zm00001d017526 | C111: PIP1-2 | D111: 0.071 | E111: 0.045 | F111: 0.960 | H111: 0.072 | I111: 0.999 | J111: 0.062 | K111: 0.041 | L111: 0.935 | N111: 0.254 | O111: 0.982 | P111: 0.116 | R111: 0.637 | S111: 1.000 | T111: 0.385 | U111: 1.000 | V111: 1.000 | W111: 0.970 | X111: 0.5585659955 | Y111: 0.0008747230576 | Z111: 0.5594407186 | AA111: 0.5005459713 | AB111: -0.10929651 | AD111: 0.6698549573 | AE111: 0.0313776004 | AF111: 0.7246720844 | AH111: 0.7575344486 | AI111: -0.03780351399 | AJ111: -0.7357268696 | AK111: 0.01904542217 | AL111: -0.790154158 | AM111: 0.1235290542
A112: AQP | B112: Zm00001d051872 | C112: PIP1-5 | D112: 0.000 | E112: 0.001 | F112: 0.950 | H112: 0.003 | I112: 0.001 | J112: 0.000 | K112: 0.000 | L112: 0.918 | N112: 0.017 | O112: 0.190 | P112: 0.432 | R112: 0.675 | S112: 1.000 | T112: 0.768 | U112: 1.000 | V112: 0.715 | W112: 0.990 | X112: 0.791723872 | Y112: 0.9269377093 | Z112: 1.718661581 | AA112: 0.7445582865 | AB112: -0.1218436171 | AD112: 1.018290147 | AE112: 0.7284489459 | AF112: 0.3732653 | AH112: 0.6252189856 | AI112: 0.06162876053 | AJ112: -0.2716373566 | AK112: 0.05610747394 | AL112: -1.309146441 | AM112: 0.04905030977
A113: AQP | B113: Zm00001d020383 | C113: PIP1-6 | D113: 0.000 | E113: 0.001 | F113: 0.978 | H113: 0.000 | I113: 0.000 | J113: 0.000 | K113: 0.001 | L113: 0.961 | N113: 0.000 | O113: 0.783 | P113: 0.358 | R113: 0.923 | S113: 1.000 | T113: 0.721 | U113: 1.000 | V113: 0.876 | W113: 0.960 | X113: 1.63226861 | Y113: 1.667689798 | Z113: 3.299958408 | AA113: 1.213492758 | AB113: -0.1130008708 | AD113: 2.237751972 | AE113: 0.4060568461 | AF113: 0.6865764 | AH113: 0.2797873656 | AI113: 0.3659980355 | AJ113: 0.505611043 | AK113: -0.1301107537 | AL113: -1.787031313 | AM113: -0.2245688131
A114: AQP | B114: Zm00001d019563 | C114: PIP2-1 | D114: 0.713 | E114: 0.102 | F114: 0.951 | H114: 0.937 | I114: 0.543 | J114: 0.523 | K114: 0.100 | L114: 0.920 | N114: 0.854 | O114: 0.562 | P114: 0.188 | R114: 0.824 | S114: 1.000 | T114: 0.466 | U114: 1.000 | V114: 1.000 | W114: 1.000 | X114: 0.02461889047 | Y114: -0.1698187011 | Z114: -0.1451998106 | AA114: 0.2731976632 | AB114: -0.08368615509 | AD114: 0.1445404738 | AE114: 0.2985510728 | AF114: 0.4140015 | AH114: 0.2362656084 | AI114: -0.09973101518 | AJ114: -0.3635044232 | AK114: 0.05774600967 | AL114: -0.4097929169 | AM114: 0.01136698799
A115: AQP | B115: Zm00001d022608 | C115: PIP2-2 | D115: 0.000 | E115: 0.009 | F115: 0.957 | H115: 0.246 | I115: 0.000 | J115: 0.000 | K115: 0.006 | L115: 0.924 | N115: 0.549 | O115: 0.343 | P115: 0.034 | R115: 0.925 | S115: 1.000 | T115: 0.339 | U115: 1.000 | V115: 1.000 | W115: 0.940 | X115: -0.8080278197 | Y115: 2.92369364 | Z115: 2.11566582 | AA115: -1.27198971 | AB115: -0.2405144519 | AD115: -0.9218129409 | AE115: -1.370244821 | AF115: -1.72091087 | AH115: -0.3433381771 | AI115: 1.286529899 | AJ115: -1.674926421 | AK115: 1.457979422 | AL115: -1.643202893 | AM115: -0.3683796163
A116: AQP | B116: Zm00001d014285 | C116: PIP2-2 | D116: 0.057 | E116: 0.003 | F116: 0.757 | H116: 0.802 | I116: 0.024 | J116: 0.031 | K116: 0.003 | L116: 0.705 | N116: 0.278 | O116: 0.139 | P116: 0.282 | R116: 0.877 | S116: 1.000 | T116: 0.234 | U116: 1.000 | V116: 1.000 | W116: 0.866 | X116: -0.07219195776 | Y116: 0.4973534351 | Z116: 0.4251614773 | AA116: 0.4605198621 | AB116: 0.1942270217 | AD116: 0.4484318259 | AE116: 0.5864059239 | AF116: 0.36153 | AH116: 0.1830483453 | AI116: 0.1842916167 | AJ116: 0.6076495308 | AK116: 0.4334106305 | AL116: -0.008192661101 | AM116: 0.2742016849
A117: AQP | B117: Zm00001d005410 | C117: PIP2-2 | D117: 0.000 | E117: 0.140 | F117: 0.823 | H117: 0.001 | I117: 0.445 | J117: 0.000 | K117: 0.134 | L117: 0.735 | N117: 0.750 | O117: 0.566 | P117: 0.566 | R117: 0.887 | S117: 1.000 | T117: 0.887 | U117: 1.000 | V117: 1.000 | W117: 0.818 | X117: 2.088539138 | Y117: 0.6587377104 | Z117: 2.747276849 | AA117: 0.8580415231 | AB117: -0.6101541538 | AD117: 0.7675791974 | AE117: 0.9805592811 | AF117: 0.6604934 | AH117: -0.6845599908 | AI117: 1.371647324 | AJ117: -0.3361517059 | AK117: -0.6822537549 | AL117: -1.845652977 | AM117: -1.162342481
A118: AQP | B118: Zm00001d005421 | C118: PIP2-2 | D118: 0.011 | E118: 0.470 | F118: 0.714 | H118: 0.118 | I118: 0.623 | J118: 0.013 | K118: 0.467 | L118: 0.649 | N118: 0.960 | O118: 0.667 | P118: 0.478 | R118: 0.997 | S118: 1.000 | T118: 0.388 | U118: 1.000 | V118: 1.000 | W118: 0.911 | X118: 0.3762784322 | Y118: 0.1644075876 | Z118: 0.5406860197 | AA118: 0.1570550838 | AB118: -0.2430234183 | AD118: -0.0573277404 | AE118: 0.284955828 | AF118: 0.2835242 | AH118: -0.00717074488 | AI118: -0.07864830249 | AJ118: -0.5444924048 | AK118: -0.1476423343 | AL118: -0.5130995676 | AM118: -0.2252579056
A119: AQP | B119: Zm00001d051174 | C119: PIP2-3 | D119: 0.000 | E119: 0.000 | F119: 0.952 | H119: 0.423 | I119: 0.000 | J119: 0.000 | K119: 0.000 | L119: 0.922 | N119: 0.008 | O119: 0.060 | P119: 0.077 | R119: 0.831 | S119: 1.000 | T119: 0.993 | U119: 1.000 | V119: 0.716 | W119: 0.970 | X119: 0.2808281625 | Y119: 1.310512736 | Z119: 1.591340899 | AA119: 1.014253383 | AB119: -0.1230055967 | AD119: 1.170681684 | AE119: 0.992972377 | AF119: 0.7977917149 | AH119: 0.3921704014 | AI119: 0.3872319657 | AJ119: -0.01149959755 | AK119: -0.03210310503 | AL119: -1.426584416 | AM119: -0.125415888
A120: AQP | B120: Zm00001d017288 | C120: PIP2-4 | D120: 0.002 | E120: 0.000 | F120: 0.975 | H120: 0.042 | I120: 0.234 | J120: 0.000 | K120: 0.000 | L120: 0.954 | N120: 0.046 | O120: 0.115 | P120: 0.108 | R120: 0.593 | S120: 1.000 | T120: 0.649 | U120: 1.000 | V120: 0.974 | W120: 1.000 | X120: 0.6905563552 | Y120: 0.4947882981 | Z120: 1.185344653 | AA120: 0.9943840706 | AB120: -0.09290846294 | AD120: 1.08711366 | AE120: 1.005031128 | AF120: 0.84081565 | AH120: 0.9705108014 | AI120: 0.3014392193 | AJ120: -0.5014698967 | AK120: -0.006621304423 | AL120: -1.24481679 | AM120: -0.02657177892
A121: AQP | B121: Zm00001d003006 | C121: PIP2-5 | D121: 0.000 | E121: 0.000 | F121: 0.959 | H121: 0.009 | I121: 0.001 | J121: 0.000 | K121: 0.000 | L121: 0.930 | N121: 0.002 | O121: 0.174 | P121: 0.195 | R121: 0.570 | S121: 1.000 | T121: 0.778 | U121: 1.000 | V121: 0.836 | W121: 0.999 | X121: 0.816202352 | Y121: 1.096267704 | Z121: 1.912470056 | AA121: 1.028235274 | AB121: -0.1220635299 | AD121: 1.425022677 | AE121: 0.8521828727 | AF121: 0.6547599 | AH121: 0.9176806936 | AI121: 0.1059188541 | AJ121: -0.304149149 | AK121: 0.08871775954 | AL121: -1.355565609 | AM121: 0.03195605965
A122: AQP | B122: Zm00001d019565 | C122: PIP2-6 | D122: 0.000 | E122: 0.118 | F122: 1.000 | H122: 0.001 | I122: 0.050 | J122: 0.000 | K122: 0.112 | L122: 0.996 | N122: 0.249 | O122: 0.995 | P122: 0.370 | R122: 0.578 | S122: 1.000 | T122: 0.767 | U122: 1.000 | V122: 1.000 | W122: 0.920 | X122: 1.280971674 | Y122: 0.8996722248 | Z122: 2.180643898 | AA122: 0.5516505597 | AB122: -0.0150654241 | AD122: 0.9148075735 | AE122: 0.01155709635 | AF122: 0.6055971 | AH122: 1.122469573 | AI122: 0.03414378696 | AJ122: 0.3932194672 | AK122: 0.07453615006 | AL122: -1.033353939 | AM122: -0.3677636527
A123: PAP | B123: Zm00001d048090 | C123: PAP1a | D123: 0.190 | E123: 0.065 | F123: 1.000 | H123: 0.368 | I123: 0.630 | J123: 0.080 | K123: 0.063 | L123: 0.997 | N123: 0.833 | O123: 0.193 | P123: 0.380 | R123: 0.724 | S123: 1.000 | T123: 0.962 | U123: 1.000 | V123: 1.000 | W123: 0.768 | X123: -0.2022204745 | Y123: -0.1369038405 | Z123: -0.339124315 | AA123: 0.2964338725 | AB123: -0.005212070904 | AD123: 0.1537036215 | AE123: 0.4999062743 | AF123: 0.2841506 | AH123: 0.3361992741 | AI123: -0.1988745981 | AJ123: 0.0310562122 | AK123: -0.2654184898 | AL123: -0.214226985 | AM123: 0.3845238507
A124: PAP | B124: Zm00001d006374 | C124: PAP1b | D124: 0.001 | E124: 0.900 | F124: 0.806 | H124: 0.241 | I124: 0.053 | J124: 0.000 | K124: 0.899 | L124: 0.752 | N124: 0.706 | O124: 0.960 | P124: 0.482 | R124: 0.869 | S124: 1.000 | T124: 0.999 | U124: 1.000 | V124: 1.000 | W124: 0.858 | X124: 0.214456802 | Y124: 0.3573478507 | Z124: 0.5718046527 | AA124: 0.02428078396 | AB124: 0.1435870677 | AD124: 0.1885175895 | AE124: 0.03892870935 | AF124: -0.2004932 | AH124: 0.104519593 | AI124: 0.1540703967 | AJ124: -0.0005807078111 | AK124: 0.1821699434 | AL124: 0.1070457666 | AM124: 0.1580427647
A125: PAP | B125: Zm00001d030765 | C125: PAP1c | D125: 0.000 | E125: 0.000 | F125: 0.906 | H125: 0.000 | I125: 0.222 | J125: 0.000 | K125: 0.000 | L125: 0.861 | N125: 0.948 | O125: 0.000 | P125: 0.006 | R125: 0.878 | S125: 1.000 | T125: 0.275 | U125: 1.000 | V125: 1.000 | W125: 0.657 | X125: -0.7104698574 | Y125: -0.3122439943 | Z125: -1.022713852 | AA125: 0.6684418877 | AB125: -0.1304988796 | AD125: 0.05581087163 | AE125: 1.456233949 | AF125: 0.7127072181 | AH125: 0.1573131463 | AI125: -0.1362390381 | AJ125: -0.4940763827 | AK125: -0.07584443676 | AL125: -0.3537184775 | AM125: -0.5192891807
A126: PAP | B126: Zm00001d018653 | C126: PAP2a | D126: 0.000 | E126: 0.021 | F126: 0.949 | H126: 0.000 | I126: 0.337 | J126: 0.000 | K126: 0.020 | L126: 0.918 | N126: 0.930 | O126: 0.001 | P126: 0.115 | R126: 0.852 | S126: 1.000 | T126: 0.246 | U126: 1.000 | V126: 0.982 | W126: 0.628 | X126: -0.5658090135 | Y126: -0.1867633363 | Z126: -0.7525723498 | AA126: 0.2808816991 | AB126: -0.06536948388 | AD126: -0.05836280776 | AE126: 0.6827169826 | AF126: 0.3393805285 | AH126: 0.09069825121 | AI126: -0.134217682 | AJ126: -0.2514193116 | AK126: 0.2061326354 | AL126: -0.2839478107 | AM126: -0.2635787765
A127: PAP | B127: Zm00001d012574 | C127: PAP2b | D127: 0.000 | E127: 0.698 | F127: 0.859 | H127: 0.000 | I127: 0.000 | J127: 0.017 | K127: 0.681 | L127: 0.805 | N127: 0.252 | O127: 0.301 | P127: 0.008 | R127: 0.869 | S127: 1.000 | T127: 0.791 | U127: 1.000 | V127: 1.000 | W127: 0.758 | X127: 1.308259448 | Y127: -2.127487453 | Z127: -0.819228005 | AA127: -0.1521099328 | AB127: -0.2734193859 | AD127: -0.7287176999 | AE127: -0.7172808125 | AF127: 1.253342936 | AH127: -0.3366297151 | AI127: 0.4064742359 | AJ127: -0.3030110188 | AK127: -0.1548837458 | AL127: -0.1920458634 | AM127: -0.8067248918
A128: PAP | B128: Zm00001d024395 | C128: PAP2c | D128: 0.130 | E128: 0.318 | F128: 1.000 | H128: 0.159 | I128: 0.961 | J128: 0.173 | K128: 0.308 | L128: 0.997 | N128: 0.683 | O128: 0.912 | P128: 0.267 | R128: 0.909 | S128: 1.000 | T128: NA | U128: 1.000 | V128: 1.000 | W128: 0.938 | X128: -1.240214134 | Y128: 0.0816321503 | Z128: -1.158581984 | AA128: 0.7541820929 | AB128: -0.02646134811 | AD128: 0.915000483 | AE128: -0.3973586558 | AF128: 1.648875 | AH128: 0.5821410003 | AI128: -0.467105149 | AJ128: 0.3952030476 | AK128: -0.4235844246 | AL128: -1.846753001 | AM128: 0.5562006626
A129: PAP | B129: Zm00001d012573 | C129: PAP2d | D129: 0.097 | E129: 0.184 | F129: 0.940 | H129: 0.067 | I129: 0.208 | J129: 0.789 | K129: 0.181 | L129: 0.908 | N129: 0.908 | O129: 0.410 | P129: 0.468 | R129: 0.858 | S129: 1.000 | T129: 0.481 | U129: 1.000 | V129: 1.000 | W129: 0.867 | X129: 0.4845877368 | Y129: -0.3951753673 | Z129: 0.08941236948 | AA129: -0.299355123 | AB129: 0.121762442 | AD129: -0.1356736343 | AE129: -0.4922684 | AF129: -0.3244724 | AH129: -0.2890313069 | AI129: -0.02082131589 | AJ129: 0.534978198 | AK129: 0.1278182418 | AL129: 0.5576406591 | AM129: 0.3783049205
A130: PAP | B130: Zm00001d037680 | C130: PAP7 | D130: 0.000 | E130: 0.004 | F130: 0.932 | H130: 0.074 | I130: 0.000 | J130: 0.007 | K130: 0.003 | L130: 0.897 | N130: 0.466 | O130: 0.001 | P130: 0.767 | R130: 0.901 | S130: 1.000 | T130: 0.728 | U130: 1.000 | V130: 1.000 | W130: 0.869 | X130: 0.476388975 | Y130: -1.132637261 | Z130: -0.6562482862 | AA130: -0.5932266445 | AB130: 0.13110236 | AD130: -0.4220622945 | AE130: -1.265643989 | AF130: -0.1410176 | AH130: -0.2015284353 | AI130: 0.4090870087 | AJ130: 0.2888108099 | AK130: 0.5233046679 | AL130: -0.02631002025 | AM130: -0.3574697467
A131: PAP | B131: Zm00001d053094 | C131: PAP7a | D131: NA | E131: 0.800 | F131: 0.885 | H131: 0.686 | I131: 0.256 | J131: 0.443 | K131: 0.732 | L131: NA | N131: NA | O131: NA | P131: NA | R131: NA | S131: 1.000 | T131: NA | U131: 1.000 | V131: 1.000 | W131: 0.896 | X131: -0.9343769595 | Y131: 2.381594795 | Z131: 1.447217836 | AA131: -0.6179511172 | AB131: -0.9827363405 | AD131: 0.7227584906 | AE131: -0.4085742201 | AF131: -3.184557 | AH131: -0.2241740919 | AI131: -0.9484941243 | AJ131: -1.214810386 | AK131: -0.5300109086 | AL131: -2.567462813 | AM131: 2.459675579
A132: PAP | B132: Zm00001d053099 | C132: PAP7b | D132: 0.347 | E132: 0.592 | F132: 0.994 | H132: 0.823 | I132: 0.454 | J132: 0.202 | K132: 0.584 | L132: 0.990 | N132: 0.957 | O132: 0.564 | P132: 0.980 | R132: 0.694 | S132: 1.000 | T132: 0.853 | U132: 1.000 | V132: 1.000 | W132: 0.949 | X132: -0.2160450809 | Y132: -0.6843556295 | Z132: -0.9004007104 | AA132: -0.3647712591 | AB132: -0.05192300915 | AD132: -0.1773052039 | AE132: -1.006498601 | AF132: 0.03997947 | AH132: 1.324964025 | AI132: -1.134051231 | AJ132: 0.402732231 | AK132: -0.3572827211 | AL132: -1.243409935 | AM132: 0.3750851232
A133: PAP | B133: Zm00001d028368 | C133: PAP7c | D133: 0.000 | E133: 0.000 | F133: 0.727 | H133: 0.000 | I133: 0.980 | J133: 0.000 | K133: 0.000 | L133: 0.659 | N133: 0.978 | O133: 0.000 | P133: 0.003 | R133: 0.986 | S133: 1.000 | T133: 0.654 | U133: 1.000 | V133: 0.635 | W133: 0.771 | X133: -0.970514227 | Y133: -0.009499338122 | Z133: -0.9800135651 | AA133: 0.565160048 | AB133: -0.1978670561 | AD133: -0.02264993555 | AE133: 1.192695619 | AF133: 0.7149157613 | AH133: -0.0187790845 | AI133: -0.07591951473 | AJ133: -0.2098596271 | AK133: -0.1779432139 | AL133: -0.7552356834 | AM133: -0.342692826
A134: PAP | B134: Zm00001d028367 | C134: PAP7d | D134: 0.000 | E134: 0.000 | F134: 0.734 | H134: 0.000 | I134: 0.000 | J134: 0.000 | K134: 0.000 | L134: 0.665 | N134: 0.565 | O134: 0.000 | P134: 0.000 | R134: 0.935 | S134: 1.000 | T134: 0.168 | U134: 1.000 | V134: 0.768 | W134: 0.595 | X134: -1.680890835 | Y134: -0.9602981053 | Z134: -2.64118894 | AA134: 1.478114954 | AB134: -0.2808197434 | AD134: 0.3134066009 | AE134: 2.380196206 | AF134: 2.056331917 | AH134: 0.1087363915 | AI134: -0.175113428 | AJ134: -0.716863257 | AK134: 0.02585780372 | AL134: -0.9033594942 | AM134: -0.7256302076
A135: PAP | B135: Zm00001d033566 | C135: PAP7f | D135: NA | E135: NA | F135: NA | H135: NA | I135: NA | J135: NA | K135: NA | L135: NA | N135: NA | O135: NA | P135: NA | R135: NA | S135: 1.000 | T135: NA | U135: 1.000 | V135: 1.000 | W135: NA | X135: 0.3146887026 | Y135: -0.601374171 | Z135: -0.2866854685 | AA135: -0.3235588063 | AB135: 0.5840580149 | AD135: -0.4957366889 | AE135: 0.2346454717 | AF135: -0.6138473 | AH135: 0.8697318524 | AI135: 0.360066945 | AJ135: 0.2278797327 | AK135: 2.05210991 | AL135: -0.5031762297 | AM135: 0
A136: PAP | B136: Zm00001d016907 | C136: PAP7g | D136: 0.774 | E136: NA | F136: 0.960 | H136: NA | I136: 0.679 | J136: NA | K136: NA | L136: NA | N136: NA | O136: NA | P136: NA | R136: NA | S136: 1.000 | T136: NA | U136: 1.000 | V136: 1.000 | W136: 0.682 | X136: -0.09951284337 | Y136: 0.6754434046 | Z136: 0.5759305612 | AA136: -0.7665382802 | AB136: 0.3619171256 | AD136: -1.042447961 | AE136: -1.104956478 | AF136: -0.06493131 | AH136: -1.654868646 | AI136: -0.1208236353 | AJ136: 0.6144858303 | AK136: -0.04630892997 | AL136: 1.738230127 | AM136: 2.701555814
A137: PAP | B137: Zm00001d043291 | C137: PAP10 | D137: 0.000 | E137: 0.000 | F137: 0.689 | H137: 0.000 | I137: 0.000 | J137: 0.000 | K137: 0.000 | L137: 0.632 | N137: 0.727 | O137: 0.000 | P137: 0.000 | R137: 0.501 | S137: 1.000 | T137: 0.162 | U137: 1.000 | V137: 1.000 | W137: 0.884 | X137: -0.9472904774 | Y137: -0.9754854519 | Z137: -1.922775929 | AA137: 1.178635186 | AB137: 0.2423321588 | AD137: 0.1724290826 | AE137: 1.999730916 | AF137: 1.659984626 | AH137: 0.46578905 | AI137: 0.0001739746908 | AJ137: 0.5279055715 | AK137: 0.2616407152 | AL137: 0.01320435146 | AM137: 0.181561653
A138: PAP | B138: Zm00001d034839 | C138: PAP13 | D138: 0.000 | E138: 0.002 | F138: 0.820 | H138: 0.000 | I138: 0.064 | J138: 0.000 | K138: 0.002 | L138: 0.768 | N138: 0.858 | O138: 0.000 | P138: 0.021 | R138: 0.709 | S138: 1.000 | T138: 0.114 | U138: 1.000 | V138: 1.000 | W138: 0.890 | X138: -1.414767089 | Y138: -0.4715903222 | Z138: -1.886357411 | AA138: 0.5389943042 | AB138: 0.1906461269 | AD138: -0.1410162317 | AE138: 1.272002823 | AF138: 0.6778049413 | AH138: 0.4041099123 | AI138: -0.1596164713 | AJ138: 0.7781896086 | AK138: 0.4687102078 | AL138: 0.03733973219 | AM138: -0.2274103934
A139: PAP | B139: Zm00001d021299 | C139: PAP14 | D139: 0.000 | E139: 0.707 | F139: 1.000 | H139: 0.001 | I139: 0.000 | J139: 0.608 | K139: 0.703 | L139: 0.996 | N139: 0.977 | O139: 0.066 | P139: 0.196 | R139: 0.849 | S139: 1.000 | T139: 0.393 | U139: 1.000 | V139: 1.000 | W139: 0.970 | X139: 0.5652786139 | Y139: -0.6729725914 | Z139: -0.1076939775 | AA139: -0.07048420073 | AB139: 0.00661283636 | AD139: -0.02360015183 | AE139: -0.5399113538 | AF139: 0.3367686 | AH139: 0.1447502566 | AI139: 0.07264399537 | AJ139: -0.3004740137 | AK139: -0.05861227062 | AL139: -0.04622601649 | AM139: -0.05193017922
A140: PAP | B140: Zm00001d042142 | C140: PAP16 | D140: 0.000 | E140: 0.000 | F140: 0.930 | H140: 0.000 | I140: 0.000 | J140: 0.000 | K140: 0.000 | L140: 0.893 | N140: 0.908 | O140: 0.000 | P140: 0.000 | R140: 0.978 | S140: 1.000 | T140: 0.820 | U140: 1.000 | V140: 1.000 | W140: 0.779 | X140: -1.250528534 | Y140: -1.61350648 | Z140: -2.864035014 | AA140: 0.8026730755 | AB140: -0.1135549368 | AD140: 0.09630420155 | AE140: 1.132935744 | AF140: 1.442258763 | AH140: 0.03618118736 | AI140: -0.3349004984 | AJ140: -0.1427700273 | AK140: 0.4314849159 | AL140: -0.3076339243 | AM140: -0.3975259332
A141: PAP | B141: Zm00001d033056 | C141: PAP18 | D141: 0.494 | E141: 0.270 | F141: 0.821 | H141: 0.336 | I141: 0.960 | J141: 0.359 | K141: 0.267 | L141: 0.765 | N141: 0.458 | O141: 0.988 | P141: 0.543 | R141: 0.730 | S141: 1.000 | T141: 0.055 | U141: 1.000 | V141: 1.000 | W141: 0.652 | X141: -0.1837203214 | Y141: 0.01597590721 | Z141: -0.1677444142 | AA141: -0.1640588758 | AB141: -0.1412882768 | AD141: -0.2901837154 | AE141: 0.01188318112 | AF141: -0.1801764 | AH141: -0.1990182211 | AI141: -0.07976535183 | AJ141: -0.4896454169 | AK141: 0.1028714337 | AL141: -0.09877689602 | AM141: -0.315293066
A142: PAP | B142: Zm00001d025343 | C142: PAP21a | D142: 0.000 | E142: 0.306 | F142: 0.889 | H142: 0.000 | I142: 0.280 | J142: 0.001 | K142: 0.284 | L142: 0.843 | N142: 0.437 | O142: 0.001 | P142: 0.524 | R142: 0.947 | S142: 1.000 | T142: 0.980 | U142: 1.000 | V142: 1.000 | W142: 0.938 | X142: -1.377630947 | Y142: 0.4333759621 | Z142: -0.944254985 | AA142: 0.3037912506 | AB142: -0.2132100345 | AD142: -0.4955737883 | AE142: 1.432677778 | AF142: 0.3163538 | AH142: -0.13584121 | AI142: -0.596226279 | AJ142: 0.0299123165 | AK142: -0.2408093558 | AL142: -0.2510948138 | AM142: 0.2189691972
A143: PAP | B143: Zm00001d053145 | C143: PAP21b | D143: 0.329 | E143: 0.031 | F143: 0.985 | H143: 0.164 | I143: 0.850 | J143: 0.270 | K143: 0.029 | L143: 0.976 | N143: 0.196 | O143: 0.955 | P143: 0.123 | R143: 0.983 | S143: 1.000 | T143: 0.963 | U143: 1.000 | V143: 1.000 | W143: 0.786 | X143: 0.395143898 | Y143: -0.08354348002 | Z143: 0.311600418 | AA143: -0.4638296752 | AB143: 0.04087563248 | AD143: -0.6401298654 | AE143: -0.06987300447 | AF143: -0.623022051 | AH143: -0.0431115148 | AI143: 0.1951196649 | AJ143: -0.04787594977 | AK143: -0.1884923915 | AL143: 0.01560913079 | AM143: 0.5748166547
A144: PAP | B144: Zm00001d023404 | C144: PAP21c | D144: 0.042 | E144: 0.783 | F144: 0.825 | H144: 0.175 | I144: 0.023 | J144: 0.357 | K144: 0.780 | L144: 0.775 | N144: 0.635 | O144: 0.605 | P144: 0.753 | R144: 0.854 | S144: 1.000 | T144: 0.650 | U144: 1.000 | V144: 1.000 | W144: 0.605 | X144: 0.3721483948 | Y144: -0.6290709276 | Z144: -0.2569225328 | AA144: -0.07670633154 | AB144: 0.2106050119 | AD144: -0.3283378705 | AE144: 0.3509171966 | AF144: -0.1520724 | AH144: 0.2832795049 | AI144: 0.02128831869 | AJ144: 0.3594705338 | AK144: 0.09736046836 | AL144: -0.1605229516 | AM144: 0.8740847111
A145: PAP | B145: Zm00001d023410 | C145: PAP21d | D145: 0.000 | E145: 0.755 | F145: 0.889 | H145: 0.442 | I145: 0.000 | J145: 0.000 | K145: 0.747 | L145: 0.847 | N145: 0.580 | O145: 0.004 | P145: 0.477 | R145: 0.873 | S145: 1.000 | T145: 0.356 | U145: 1.000 | V145: 1.000 | W145: 0.524 | X145: -0.2487237378 | Y145: -1.758900227 | Z145: -2.007623965 | AA145: 0.09460894016 | AB145: 0.1813017307 | AD145: -0.3497003318 | AE145: 1.112490073 | AF145: -0.3172139 | AH145: -0.2276753941 | AI145: 0.0592572412 | AJ145: 0.6038940893 | AK145: 0.3206889209 | AL145: 0.3296898369 | AM145: 1.008079031
A146: PAP | B146: Zm00001d050026 | C146: PAP23 | D146: 0.000 | E146: 0.059 | F146: 0.624 | H146: 0.000 | I146: 0.020 | J146: 0.000 | K146: 0.057 | L146: 0.553 | N146: 0.819 | O146: 0.139 | P146: 0.490 | R146: 0.778 | S146: 1.000 | T146: 0.088 | U146: 1.000 | V146: 0.299 | W146: 0.818 | X146: -0.8590103693 | Y146: -0.4565540916 | Z146: -1.315564461 | AA146: 0.2823624837 | AB146: -0.2226203281 | AD146: 0.1527510364 | AE146: 0.5223162594 | AF146: 0.2223271 | AH146: 0.2218141417 | AI146: -0.3528817696 | AJ146: -0.6059601297 | AK146: -0.05940777268 | AL146: -0.8949598927 | AM146: -0.2586638026
A147: PAP | B147: Zm00001d004075 | C147: PAP24a | D147: 0.001 | E147: 0.675 | F147: 0.737 | H147: 0.000 | I147: 0.046 | J147: 0.317 | K147: 0.672 | L147: 0.688 | N147: 0.681 | O147: 0.601 | P147: 0.361 | R147: 0.916 | S147: 1.000 | T147: 0.081 | U147: 1.000 | V147: 1.000 | W147: 0.695 | X147: 0.8931415066 | Y147: -0.5999153941 | Z147: 0.2932261125 | AA147: -0.117881694 | AB147: 0.267082612 | AD147: -0.3224993437 | AE147: -0.3753976867 | AF147: 0.4082816 | AH147: -0.1817688932 | AI147: 0.1150120682 | AJ147: 1.188546874 | AK147: 0.08538617459 | AL147: 0.1900166322 | AM147: 0.7461997095
A148: PAP | B148: Zm00001d031657 | C148: PAP24b | D148: 0.212 | E148: 0.024 | F148: 0.847 | H148: 0.957 | I148: 0.279 | J148: 0.229 | K148: 0.021 | L148: 0.797 | N148: 0.870 | O148: 0.002 | P148: 0.698 | R148: 0.833 | S148: 1.000 | T148: 0.242 | U148: 1.000 | V148: 1.000 | W148: 0.912 | X148: 0.0203990219 | Y148: -0.3129522725 | Z148: -0.2925532506 | AA148: -0.4242766973 | AB148: 0.1800813127 | AD148: -0.1478454677 | AE148: -1.043638707 | AF148: -0.1595868 | AH148: -0.274592132 | AI148: 0.4410681084 | AJ148: 0.6610838112 | AK148: 0.3978840719 | AL148: -0.1083575238 | AM148: -0.2105002072
A149: PAP | B149: Zm00001d023227 | C149: PAP26 | D149: 0.000 | E149: 0.251 | F149: 1.000 | H149: 0.000 | I149: 0.086 | J149: 0.154 | K149: 0.221 | L149: 0.998 | N149: 0.372 | O149: 0.257 | P149: 0.418 | R149: 0.754 | S149: 1.000 | T149: 0.984 | U149: 1.000 | V149: 1.000 | W149: 1.000 | X149: 2.365376446 | Y149: -1.33223588 | Z149: 1.033140566 | AA149: -0.7472315716 | AB149: 0.01497482764 | AD149: -1.368198997 | AE149: -1.511834329 | AF149: 0.9194202 | AH149: -1.151941924 | AI149: 0.7635999056 | AJ149: -0.04350900103 | AK149: -0.931332352 | AL149: 0.6770400469 | AM149: 0.03246445066
A150: PAP | B150: Zm00001d036490 | C150: PAP28a | D150: 0.238 | E150: 0.445 | F150: 0.869 | H150: 0.095 | I150: 0.613 | J150: 0.362 | K150: 0.442 | L150: 0.820 | N150: 0.555 | O150: 0.390 | P150: 0.093 | R150: 0.981 | S150: 1.000 | T150: 0.327 | U150: 1.000 | V150: 1.000 | W150: 0.512 | X150: -0.2656234112 | Y150: 0.1126543924 | Z150: -0.1529690188 | AA150: 0.1103844803 | AB150: -0.1102349261 | AD150: -0.2180506127 | AE150: 0.2858021169 | AF150: 0.3749154529 | AH150: -0.01958987562 | AI150: -0.01559939609 | AJ150: -0.3008195301 | AK150: 0.02464037258 | AL150: -0.3180484856 | AM150: -0.4736242655
A151: PAP | B151: Zm00001d047241 | C151: PAP28b | D151: 0.266 | E151: 0.499 | F151: 0.983 | H151: 0.972 | I151: 0.298 | J151: 0.187 | K151: 0.496 | L151: 0.974 | N151: 0.980 | O151: 0.648 | P151: 0.562 | R151: 0.843 | S151: 1.000 | T151: 0.070 | U151: 1.000 | V151: 1.000 | W151: 0.968 | X151: -0.008683338572 | Y151: -0.1986514258 | Z151: -0.2073347644 | AA151: 0.09816209321 | AB151: 0.02559624186 | AD151: -0.01879685521 | AE151: 0.1930122798 | AF151: 0.1551857 | AH151: 0.09647573644 | AI151: -0.05214977084 | AJ151: 0.3745719175 | AK151: -0.1055405162 | AL151: 0.1076049824 | AM151: -0.03549655422
A152: PAP | B152: Zm00001d023918 | C152: PAP30a | D152: 0.000 | E152: 0.000 | F152: 0.616 | H152: 0.005 | I152: 0.000 | J152: 0.000 | K152: 0.000 | L152: 0.562 | N152: 0.762 | O152: 0.012 | P152: 0.000 | R152: 0.901 | S152: 1.000 | T152: 0.265 | U152: 1.000 | V152: 1.000 | W152: 0.899 | X152: -0.5660149261 | Y152: -0.8748229768 | Z152: -1.440837903 | AA152: 0.7277344945 | AB152: 0.2559550814 | AD152: 0.1924387099 | AE152: 0.7999577774 | AF152: 1.370082104 | AH152: 0.1423841897 | AI152: 0.2248385955 | AJ152: 0.5419264783 | AK152: 0.4130927345 | AL152: 0.3694630405 | AM152: 0.2028638162
A153: PAP | B153: Zm00001d039195 | C153: PAP30b | D153: 0.529 | E153: NA | F153: 0.980 | H153: NA | I153: 0.887 | J153: NA | K153: NA | L153: NA | N153: NA | O153: NA | P153: NA | R153: NA | S153: 1.000 | T153: NA | U153: 1.000 | V153: 1.000 | W153: 0.968 | X153: 0.6135595909 | Y153: 0.2688391288 | Z153: 0.8823987197 | AA153: -1.275422519 | AB153: 0.2234533851 | AD153: -0.02219864576 | AE153: -1.460608425 | AF153: -2.486916 | AH153: 2.288552526 | AI153: -0.1208236287 | AJ153: -0.9944055235 | AK153: -0.05253649487 | AL153: -0.0576288633 | AM153: 0.4958344421
A154: P | B154: Zm00001d019536 | C154: PHR1 | D154: 0.268 | E154: 0.698 | F154: 0.924 | H154: 0.343 | I154: 0.105 | J154: 0.491 | K154: 0.697 | L154: 0.887 | N154: 0.959 | O154: 0.644 | P154: 0.850 | R154: 1.000 | S154: =VLOOKUP([1]trt_BBCH14_S_RTH3_BBCH14_S_WT!K2,[1]trt_BBCH14_S_RTH3_BBCH14_S_WT!$A$2:$G$32415,7,0) -> 1.000 | T154: =VLOOKUP([2]trt_BBCH19_L_RTH3_BBCH19_L_WT!K2,[2]trt_BBCH19_L_RTH3_BBCH19_L_WT!$A$2:$G$32415,7,0) -> 0.553 | U154: =VLOOKUP([3]trt_BBCH19_S_RTH3_BBCH19_S_WT!K2,[3]trt_BBCH19_S_RTH3_BBCH19_S_WT!$A$2:$G$32415,7,0) -> 1.000 | V154: =VLOOKUP([4]trt_BBCH59_L_RTH3_BBCH59_L_WT!K2,[4]trt_BBCH59_L_RTH3_BBCH59_L_WT!$A$2:$G$32415,7,0) -> 1.000 | W154: =VLOOKUP([5]trt_BBCH59_S_RTH3_BBCH59_S_WT!K2,[5]trt_BBCH59_S_RTH3_BBCH59_S_WT!$A$2:$G$32415,7,0) -> 0.597 | X154: -0.1642124963 | Y154: 0.2823489352 | Z154: 0.1181364389 | AA154: 0.06112385331 | AB154: -0.08225833866 | AD154: -0.03781631534 | AE154: 0.1953642002 | AF154: 0.05797219 | AH154: 0.0002591300696 | AI154: =VLOOKUP([1]trt_BBCH14_S_RTH3_BBCH14_S_WT!K2,[1]trt_BBCH14_S_RTH3_BBCH14_S_WT!$A$2:$G$32415,3,0) -> -0.01355573816 | AJ154: =VLOOKUP([2]trt_BBCH19_L_RTH3_BBCH19_L_WT!K2,[2]trt_BBCH19_L_RTH3_BBCH19_L_WT!$A$2:$G$32415,3,0) -> -0.1815261026 | AK154: =VLOOKUP([3]trt_BBCH19_S_RTH3_BBCH19_S_WT!K2,[3]trt_BBCH19_S_RTH3_BBCH19_S_WT!$A$2:$G$32415,3,0) -> 0.002161787961 | AL154: =VLOOKUP([4]trt_BBCH59_L_RTH3_BBCH59_L_WT!K2,[4]trt_BBCH59_L_RTH3_BBCH59_L_WT!$A$2:$G$32415,3,0) -> -0.1832516667 | AM154: =VLOOKUP([5]trt_BBCH59_S_RTH3_BBCH59_S_WT!K2,[5]trt_BBCH59_S_RTH3_BBCH59_S_WT!$A$2:$G$32415,3,0) -> -0.3718223165
A155: P | B155: Zm00001d018465 | C155: PHR1 | D155: 0.000 | E155: 0.000 | F155: 0.634 | H155: 0.003 | I155: 0.020 | J155: 0.000 | K155: 0.000 | L155: 0.564 | N155: 0.450 | O155: 0.001 | P155: 0.000 | R155: 0.785 | S155: =VLOOKUP([1]trt_BBCH14_S_RTH3_BBCH14_S_WT!K3,[1]trt_BBCH14_S_RTH3_BBCH14_S_WT!$A$2:$G$32415,7,0) -> 1.000 | T155: =VLOOKUP([2]trt_BBCH19_L_RTH3_BBCH19_L_WT!K3,[2]trt_BBCH19_L_RTH3_BBCH19_L_WT!$A$2:$G$32415,7,0) -> 0.149 | U155: =VLOOKUP([3]trt_BBCH19_S_RTH3_BBCH19_S_WT!K3,[3]trt_BBCH19_S_RTH3_BBCH19_S_WT!$A$2:$G$32415,7,0) -> 1.000 | V155: =VLOOKUP([4]trt_BBCH59_L_RTH3_BBCH59_L_WT!K3,[4]trt_BBCH59_L_RTH3_BBCH59_L_WT!$A$2:$G$32415,7,0) -> 1.000 | W155: =VLOOKUP([5]trt_BBCH59_S_RTH3_BBCH59_S_WT!K3,[5]trt_BBCH59_S_RTH3_BBCH59_S_WT!$A$2:$G$32415,7,0) -> 0.784 | X155: 0.6095381325 | Y155: 0.5235769813 | Z155: 1.133115114 | AA155: -0.8462466273 | AB155: -0.2579598919 | AD155: -0.3652334868 | AE155: -1.052508558 | AF155: -1.256687452 | AH155: -0.308273429 | AI155: =VLOOKUP([1]trt_BBCH14_S_RTH3_BBCH14_S_WT!K3,[1]trt_BBCH14_S_RTH3_BBCH14_S_WT!$A$2:$G$32415,3,0) -> -0.1252441065 | AJ155: =VLOOKUP([2]trt_BBCH19_L_RTH3_BBCH19_L_WT!K3,[2]trt_BBCH19_L_RTH3_BBCH19_L_WT!$A$2:$G$32415,3,0) -> -0.6877196093 | AK155: =VLOOKUP([3]trt_BBCH19_S_RTH3_BBCH19_S_WT!K3,[3]trt_BBCH19_S_RTH3_BBCH19_S_WT!$A$2:$G$32415,3,0) -> -0.1394598689 | AL155: =VLOOKUP([4]trt_BBCH59_L_RTH3_BBCH59_L_WT!K3,[4]trt_BBCH59_L_RTH3_BBCH59_L_WT!$A$2:$G$32415,3,0) -> -0.3507037304 | AM155: =VLOOKUP([5]trt_BBCH59_S_RTH3_BBCH59_S_WT!K3,[5]trt_BBCH59_S_RTH3_BBCH59_S_WT!$A$2:$G$32415,3,0) -> -0.4037718002
A156: P | B156: Zm00001d003037 | C156: PHR2 | D156: 0.002 | E156: 0.437 | F156: 0.975 | H156: 0.727 | I156: 0.001 | J156: 0.001 | K156: 0.427 | L156: 0.957 | N156: 0.531 | O156: 0.861 | P156: 0.003 | R156: 0.920 | S156: =VLOOKUP([1]trt_BBCH14_S_RTH3_BBCH14_S_WT!K4,[1]trt_BBCH14_S_RTH3_BBCH14_S_WT!$A$2:$G$32415,7,0) -> 1.000 | T156: =VLOOKUP([2]trt_BBCH19_L_RTH3_BBCH19_L_WT!K4,[2]trt_BBCH19_L_RTH3_BBCH19_L_WT!$A$2:$G$32415,7,0) -> 0.852 | U156: =VLOOKUP([3]trt_BBCH19_S_RTH3_BBCH19_S_WT!K4,[3]trt_BBCH19_S_RTH3_BBCH19_S_WT!$A$2:$G$32415,7,0) -> 1.000 | V156: =VLOOKUP([4]trt_BBCH59_L_RTH3_BBCH59_L_WT!K4,[4]trt_BBCH59_L_RTH3_BBCH59_L_WT!$A$2:$G$32415,7,0) -> 1.000 | W156: =VLOOKUP([5]trt_BBCH59_S_RTH3_BBCH59_S_WT!K4,[5]trt_BBCH59_S_RTH3_BBCH59_S_WT!$A$2:$G$32415,7,0) -> 0.645 | X156: 0.1145574838 | Y156: -0.8471222595 | Z156: -0.7325647757 | AA156: 0.1799186609 | AB156: -0.06436529713 | AD156: -0.3442197084 | AE156: 0.1405102232 | AF156: 0.9421423618 | AH156: -0.1477692149 | AI156: =VLOOKUP([1]trt_BBCH14_S_RTH3_BBCH14_S_WT!K4,[1]trt_BBCH14_S_RTH3_BBCH14_S_WT!$A$2:$G$32415,3,0) -> 0.1447214538 | AJ156: =VLOOKUP([2]trt_BBCH19_L_RTH3_BBCH19_L_WT!K4,[2]trt_BBCH19_L_RTH3_BBCH19_L_WT!$A$2:$G$32415,3,0) -> 0.150479924 | AK156: =VLOOKUP([3]trt_BBCH19_S_RTH3_BBCH19_S_WT!K4,[3]trt_BBCH19_S_RTH3_BBCH19_S_WT!$A$2:$G$32415,3,0) -> -0.07699023316 | AL156: =VLOOKUP([4]trt_BBCH59_L_RTH3_BBCH59_L_WT!K4,[4]trt_BBCH59_L_RTH3_BBCH59_L_WT!$A$2:$G$32415,3,0) -> 0.419375424 | AM156: =VLOOKUP([5]trt_BBCH59_S_RTH3_BBCH59_S_WT!K4,[5]trt_BBCH59_S_RTH3_BBCH59_S_WT!$A$2:$G$32415,3,0) -> -0.7166635617
A157: P | B157: Zm00001d014701 | C157: PHR3 | D157: 0.000 | E157: 0.000 | F157: 0.862 | H157: 0.000 | I157: 0.110 | J157: 0.000 | K157: 0.000 | L157: 0.812 | N157: 0.984 | O157: 0.000 | P157: 0.000 | R157: 0.980 | S157: =VLOOKUP([1]trt_BBCH14_S_RTH3_BBCH14_S_WT!K5,[1]trt_BBCH14_S_RTH3_BBCH14_S_WT!$A$2:$G$32415,7,0) -> 1.000 | T157: =VLOOKUP([2]trt_BBCH19_L_RTH3_BBCH19_L_WT!K5,[2]trt_BBCH19_L_RTH3_BBCH19_L_WT!$A$2:$G$32415,7,0) -> 0.308 | U157: =VLOOKUP([3]trt_BBCH19_S_RTH3_BBCH19_S_WT!K5,[3]trt_BBCH19_S_RTH3_BBCH19_S_WT!$A$2:$G$32415,7,0) -> 1.000 | V157: =VLOOKUP([4]trt_BBCH59_L_RTH3_BBCH59_L_WT!K5,[4]trt_BBCH59_L_RTH3_BBCH59_L_WT!$A$2:$G$32415,7,0) -> 1.000 | W157: =VLOOKUP([5]trt_BBCH59_S_RTH3_BBCH59_S_WT!K5,[5]trt_BBCH59_S_RTH3_BBCH59_S_WT!$A$2:$G$32415,7,0) -> 0.755 | X157: -1.318405718 | Y157: -0.4188655024 | Z157: -1.73727122 | AA157: 0.7423934625 | AB157: -0.1672927719 | AD157: -0.01803837644 | AE157: 1.459812159 | AF157: 1.026147478 | AH157: -0.03731627125 | AI157: =VLOOKUP([1]trt_BBCH14_S_RTH3_BBCH14_S_WT!K5,[1]trt_BBCH14_S_RTH3_BBCH14_S_WT!$A$2:$G$32415,3,0) -> -0.02081802237 | AJ157: =VLOOKUP([2]trt_BBCH19_L_RTH3_BBCH19_L_WT!K5,[2]trt_BBCH19_L_RTH3_BBCH19_L_WT!$A$2:$G$32415,3,0) -> -0.5368344939 | AK157: =VLOOKUP([3]trt_BBCH19_S_RTH3_BBCH19_S_WT!K5,[3]trt_BBCH19_S_RTH3_BBCH19_S_WT!$A$2:$G$32415,3,0) -> 0.06457058057 | AL157: =VLOOKUP([4]trt_BBCH59_L_RTH3_BBCH59_L_WT!K5,[4]trt_BBCH59_L_RTH3_BBCH59_L_WT!$A$2:$G$32415,3,0) -> -0.3406175526 | AM157: =VLOOKUP([5]trt_BBCH59_S_RTH3_BBCH59_S_WT!K5,[5]trt_BBCH59_S_RTH3_BBCH59_S_WT!$A$2:$G$32415,3,0) -> -0.4663177843
A158: P | B158: Zm00001d001936 | C158: PHR4 | D158: 0.000 | E158: 0.000 | F158: 1.000 | H158: 0.000 | I158: 0.028 | J158: 0.000 | K158: 0.000 | L158: 0.998 | N158: 0.941 | O158: 0.000 | P158: 0.016 | R158: 0.723 | S158: =VLOOKUP([1]trt_BBCH14_S_RTH3_BBCH14_S_WT!K6,[1]trt_BBCH14_S_RTH3_BBCH14_S_WT!$A$2:$G$32415,7,0) -> 1.000 | T158: =VLOOKUP([2]trt_BBCH19_L_RTH3_BBCH19_L_WT!K6,[2]trt_BBCH19_L_RTH3_BBCH19_L_WT!$A$2:$G$32415,7,0) -> 0.996 | U158: =VLOOKUP([3]trt_BBCH19_S_RTH3_BBCH19_S_WT!K6,[3]trt_BBCH19_S_RTH3_BBCH19_S_WT!$A$2:$G$32415,7,0) -> 1.000 | V158: =VLOOKUP([4]trt_BBCH59_L_RTH3_BBCH59_L_WT!K6,[4]trt_BBCH59_L_RTH3_BBCH59_L_WT!$A$2:$G$32415,7,0) -> 1.000 | W158: =VLOOKUP([5]trt_BBCH59_S_RTH3_BBCH59_S_WT!K6,[5]trt_BBCH59_S_RTH3_BBCH59_S_WT!$A$2:$G$32415,7,0) -> 0.884 | X158: 1.216522211 | Y158: 0.5522240757 | Z158: 1.768746287 | AA158: -0.6329586758 | AB158: 0.00457444087 | AD158: -0.0767395454 | AE158: -1.235645955 | AF158: -0.7480055392 | AH158: -0.4331291073 | AI158: =VLOOKUP([1]trt_BBCH14_S_RTH3_BBCH14_S_WT!K6,[1]trt_BBCH14_S_RTH3_BBCH14_S_WT!$A$2:$G$32415,3,0) -> 0.5555808683 | AJ158: =VLOOKUP([2]trt_BBCH19_L_RTH3_BBCH19_L_WT!K6,[2]trt_BBCH19_L_RTH3_BBCH19_L_WT!$A$2:$G$32415,3,0) -> 0.004375372311 | AK158: =VLOOKUP([3]trt_BBCH19_S_RTH3_BBCH19_S_WT!K6,[3]trt_BBCH19_S_RTH3_BBCH19_S_WT!$A$2:$G$32415,3,0) -> -0.06688470537 | AL158: =VLOOKUP([4]trt_BBCH59_L_RTH3_BBCH59_L_WT!K6,[4]trt_BBCH59_L_RTH3_BBCH59_L_WT!$A$2:$G$32415,3,0) -> -0.3802511982 | AM158: =VLOOKUP([5]trt_BBCH59_S_RTH3_BBCH59_S_WT!K6,[5]trt_BBCH59_S_RTH3_BBCH59_S_WT!$A$2:$G$32415,3,0) -> -0.2588982618
A159: P | B159: Zm00001d038972 | C159: PHO2 | D159: 0.000 | E159: 0.946 | F159: 0.871 | H159: 0.528 | I159: 0.000 | J159: 0.000 | K159: 0.945 | L159: 0.820 | N159: 0.770 | O159: 0.840 | P159: 0.885 | R159: 0.992 | S159: =VLOOKUP([1]trt_BBCH14_S_RTH3_BBCH14_S_WT!K7,[1]trt_BBCH14_S_RTH3_BBCH14_S_WT!$A$2:$G$32415,7,0) -> 1.000 | T159: =VLOOKUP([2]trt_BBCH19_L_RTH3_BBCH19_L_WT!K7,[2]trt_BBCH19_L_RTH3_BBCH19_L_WT!$A$2:$G$32415,7,0) -> 0.500 | U159: =VLOOKUP([3]trt_BBCH19_S_RTH3_BBCH19_S_WT!K7,[3]trt_BBCH19_S_RTH3_BBCH19_S_WT!$A$2:$G$32415,7,0) -> 1.000 | V159: =VLOOKUP([4]trt_BBCH59_L_RTH3_BBCH59_L_WT!K7,[4]trt_BBCH59_L_RTH3_BBCH59_L_WT!$A$2:$G$32415,7,0) -> 1.000 | W159: =VLOOKUP([5]trt_BBCH59_S_RTH3_BBCH59_S_WT!K7,[5]trt_BBCH59_S_RTH3_BBCH59_S_WT!$A$2:$G$32415,7,0) -> 0.603 | X159: -0.1627128461 | Y159: 1.241005795 | Z159: 1.078292949 | AA159: 0.0175908617 | AB159: -0.1504822908 | AD159: 0.2034013279 | AE159: -0.1485267331 | AF159: -0.0636904 | AH159: 0.01406134803 | AI159: =VLOOKUP([1]trt_BBCH14_S_RTH3_BBCH14_S_WT!K7,[1]trt_BBCH14_S_RTH3_BBCH14_S_WT!$A$2:$G$32415,3,0) -> 0.03922777214 | AJ159: =VLOOKUP([2]trt_BBCH19_L_RTH3_BBCH19_L_WT!K7,[2]trt_BBCH19_L_RTH3_BBCH19_L_WT!$A$2:$G$32415,3,0) -> -0.4169521643 | AK159: =VLOOKUP([3]trt_BBCH19_S_RTH3_BBCH19_S_WT!K7,[3]trt_BBCH19_S_RTH3_BBCH19_S_WT!$A$2:$G$32415,3,0) -> -0.02837520029 | AL159: =VLOOKUP([4]trt_BBCH59_L_RTH3_BBCH59_L_WT!K7,[4]trt_BBCH59_L_RTH3_BBCH59_L_WT!$A$2:$G$32415,3,0) -> -0.147046969 | AM159: =VLOOKUP([5]trt_BBCH59_S_RTH3_BBCH59_S_WT!K7,[5]trt_BBCH59_S_RTH3_BBCH59_S_WT!$A$2:$G$32415,3,0) -> -0.7396951227
